Card Number,Card ID,Card Name,Card Type,Card User,Reference,Tran Type,Tran ID,Tran Date,Tran Year,Tran Period,Comm Date,Orig Comm Year,Orig Comm Period,Curr Comm Year,Curr Comm Period,Value,VAT Value,Nett Value,VAT Code,VAT Rate,VAT Year,VAT Period,VAT Inv,VAT Number,Supplier,Description,Purchase Type,Cost Centre,Account,Classification,Additional Ref,Department,Section,Compared,Compared Date,Compared By,Compared ID,Batch/Run Id,Disputed,Dispute Date,Dispute By,Dispute Reason,Authorised,Authorised Date,Authorised By,Jnl Date,Jnl Year,Jnl Period,Entered By,Entered Date,Year End Proc,Year End Ind
************5113,6,Mr Duncan J Byrne,U,Duncan Byrne,10089,C,10089,21/04/2023,2023,1,03/05/2023,2023,2,2023,2,276.14,46.02,230.12,B,20%,2023,2,Y,337192158,B J Sherriff,1x Bee Suit - 276.14 (Above for JH for use at WECP),Other,6103,41600,,,People and Places,People and Places,Y,03/05/2023 15:57,DBYRNE,7071,7723,N,,,,Y,03/05/2023 17:46,ABODEN,03/05/2023,2023,2,DBYRNE,03/05/2023 15:21,N,N
************5113,6,Mr Duncan J Byrne,U,Duncan Byrne,10153,C,10153,28/04/2023,2023,1,01/06/2023,2023,3,2023,3,70.83,11.81,59.02,B,20%,2023,3,Y,312236700,C & C Supplies Collinson LTD,"10x Fencing Pins - 24.10 1x Lump Hammer - 15.18 1 Pack (x100) Cable Ties - 19.74 (above to use for prep to Garstang Walking Festival, then general use)",Other,3131,42002,,,People and Places,People and Places,Y,02/06/2023 15:34,DBYRNE,7097,7777,N,,,,Y,02/06/2023 16:52,ABODEN,01/06/2023,2023,3,DBYRNE,01/06/2023 14:17,N,N
************5113,6,Mr Duncan J Byrne,U,Duncan Byrne,10187,C,10187,01/05/2023,2023,2,14/06/2023,2023,3,2023,3,27.00,4.50,22.50,B,20%,2023,3,Y,390709185,Ticket Tailor,Ticket Fees - 22.50 (Above for WGO`s & GWF bookings),Other,3131,46700,,,People and Places,People and Places,Y,14/06/2023 16:46,DBYRNE,7111,7813,N,,,,P,14/06/2023 16:46,ABODEN,,0,0,DBYRNE,14/06/2023 16:30,N,N
************5113,6,Mr Duncan J Byrne,U,Duncan Byrne,10156,C,10156,02/05/2023,2023,2,02/06/2023,2023,3,2023,3,485.55,80.93,404.62,B,20%,2023,3,Y,796347182,www.mountainwarehouse.com,40x Iso-Viz Rucksack Covers - 11.99each.,Other,3131,40100,,,People and Places,People and Places,Y,02/06/2023 15:34,DBYRNE,7098,7779,N,,,,Y,02/06/2023 16:52,ABODEN,02/06/2023,2023,3,DBYRNE,02/06/2023 14:13,N,N
************5113,6,Mr Duncan J Byrne,U,Duncan Byrne,10155,C,10155,05/05/2023,2023,2,01/06/2023,2023,3,2023,3,15.00,2.50,12.50,B,20%,2023,3,Y,170716417,Booths Supermarket,Elderflower Cordial - 4.45 Ginger Cordial - 4.45 Victoria Biscuits - 4.00 Robinsons Squash - 2.10 (above for GWF Hospitality),Other,3131,46842,,,People and Places,People and Places,Y,02/06/2023 15:34,DBYRNE,7099,7778,N,,,,Y,02/06/2023 16:52,ABODEN,01/06/2023,2023,3,DBYRNE,01/06/2023 15:26,N,N
************5113,6,Mr Duncan J Byrne,U,Duncan Byrne,10154,C,10154,05/05/2023,2023,2,01/06/2023,2023,3,2023,3,28.45,0.00,28.45,C,0%,2023,3,,,Booths Supermarket,Milk - 1.75 T Bags - 5.00 Coffee - 19.90 Sugar - 1.80 (above for GWF Hospitality),Other,3131,46842,,,People and Places,People and Places,Y,02/06/2023 15:34,DBYRNE,7099,7778,N,,,,Y,02/06/2023 16:52,ABODEN,01/06/2023,2023,3,DBYRNE,01/06/2023 15:18,N,N
************5113,6,Mr Duncan J Byrne,U,Duncan Byrne,10159,C,10159,06/05/2023,2023,2,02/06/2023,2023,3,2023,3,40.00,6.67,33.33,B,20%,2023,3,Y,,PayPal Wyre Council (Ticket Tailor),4x places (via Ticket Tailor) on Garstang Walking Festival Celebration Meal (Above for GWF Volunteer Leaders),Other,3131,46842,,,People and Places,People and Places,Y,02/06/2023 15:35,DBYRNE,7100,7782,N,,,,Y,02/06/2023 16:52,ABODEN,02/06/2023,2023,3,DBYRNE,02/06/2023 14:57,N,N
************5113,6,Mr Duncan J Byrne,U,Duncan Byrne,10157,C,10157,12/05/2023,2023,2,02/06/2023,2023,3,2023,3,40.00,0.00,40.00,C,0%,2023,3,,,Steve`s Cheese Larder,Cheese (2 Varieties) for GWF Celebration Meal to cover 30 - 40,Other,3131,46842,,,People and Places,People and Places,Y,02/06/2023 15:35,DBYRNE,7101,7780,N,,,,Y,02/06/2023 16:52,ABODEN,02/06/2023,2023,3,DBYRNE,02/06/2023 14:20,N,N
************5113,6,Mr Duncan J Byrne,U,Duncan Byrne,10188,C,10188,13/05/2023,2023,2,14/06/2023,2023,3,2023,3,28.80,4.80,24.00,B,20%,2023,3,Y,390709185,Ticket Tailor,Ticket Fees - 24.00 (purchases for WGO`s & GWF bookings),Other,3131,46700,,,People and Places,People and Places,Y,14/06/2023 16:46,DBYRNE,7112,7814,N,,,,P,14/06/2023 16:46,ABODEN,,0,0,DBYRNE,14/06/2023 16:36,N,N
************5113,6,Mr Duncan J Byrne,U,Duncan Byrne,10189,C,10189,14/05/2023,2023,2,14/06/2023,2023,3,2023,3,1.20,0.20,1.00,B,20%,2023,3,Y,390709185,Ticket Tailor,Ticket Fees - 1.20 (Purchases for WGO & GWF),Other,3131,46700,,,People and Places,People and Places,Y,14/06/2023 16:46,DBYRNE,7113,7815,N,,,,P,14/06/2023 16:46,ABODEN,,0,0,DBYRNE,14/06/2023 16:45,N,N
************5113,6,Mr Duncan J Byrne,U,Duncan Byrne,10158,C,10158,20/05/2023,2023,2,02/06/2023,2023,3,2023,3,29.99,5.00,24.99,B,20%,2023,3,Y,322950373,Fast Fix Workshop Ltd,2x 6v Batteries - 15.60 2x D Batteries - 8.98 1x 8pack AA Batteries - 6.99 (Above for torches and Bat Detectors on Wyre`s Great Outdoors Activities),Other,3131,42002,,,People and Places,People and Places,Y,02/06/2023 15:35,DBYRNE,7102,7781,N,,,,Y,02/06/2023 16:52,ABODEN,02/06/2023,2023,3,DBYRNE,02/06/2023 14:26,N,N
************5113,6,Mr Duncan J Byrne,U,Duncan Byrne,10240,C,10240,30/05/2023,2023,2,08/07/2023,2023,4,2023,4,65.20,10.87,54.33,B,20%,2023,4,Y,262657347,Toolstop.co.uk,1x Bosch Shrub and Grass Shear set - 54.33 (above for WECP Cottage Garden),Other,3130,40100,,,People and Places,People and Places,Y,08/07/2023 16:48,DBYRNE,7155,7865,N,,,,P,08/07/2023 16:49,ABODEN,,0,0,DBYRNE,08/07/2023 16:19,N,N
************5113,6,Mr Duncan J Byrne,U,Duncan Byrne,10204,C,10204,02/06/2023,2023,3,17/06/2023,2023,3,2023,3,13.98,0.00,13.98,C,0%,2023,3,,,The Plant Place,2x Box of Seeds - 13.98 (above for Green Get together event),Other,3130,21065,,,People and Places,People and Places,Y,03/07/2023 16:16,CCROOK,7152,7825,N,,,,P,03/07/2023 16:17,ABODEN,,0,0,DBYRNE,17/06/2023 15:55,N,N
************5113,6,Mr Duncan J Byrne,U,Duncan Byrne,10203,C,10203,02/06/2023,2023,3,17/06/2023,2023,3,2023,3,61.58,10.26,51.32,B,20%,2023,3,Y,733097336,The Plant Place,2x Compost - 11.98 Canes - 6.49 Slug Deterent - 6.99 Chicken Manure - 9.99 Cane Toppers - 1.20 Plant Labels - 14.95 2x plants (above of Stanah Wildlife Garden & Green Get Together event),Other,3130,40100,,,People and Places,People and Places,Y,03/07/2023 16:16,CCROOK,7152,7825,N,,,,P,03/07/2023 16:17,ABODEN,,0,0,DBYRNE,17/06/2023 15:53,N,N
************5113,6,Mr Duncan J Byrne,U,Duncan Byrne,10242,C,10242,07/06/2023,2023,3,08/07/2023,2023,4,2023,4,56.98,9.50,47.48,B,20%,2023,4,Y,190023639,AMAZON.CO.UK,1 Portable Voice Amplifier - 51.99 (Above for use of Guided Walks etc. - Part of Wyre Great Outdoors),Other,3131,40100,,,People and Places,People and Places,Y,08/07/2023 16:48,DBYRNE,7156,7867,N,,,,P,08/07/2023 16:49,ABODEN,,0,0,DBYRNE,08/07/2023 16:46,N,N
************5113,6,Mr Duncan J Byrne,U,Duncan Byrne,10241,C,10241,09/06/2023,2023,3,08/07/2023,2023,4,2023,4,70.10,0.00,70.10,C,0%,2023,4,,,Morrisons Supermarket,2x Milk - 4.60 5x Coffee - 30.00 3x Sugar - 6.27 1x UHT Milk - 5.99 3x Tea - 18.75 5xBiscuits - 4.49 (above for Big Green Event Volunteers),Other,3131,46842,,,People and Places,People and Places,Y,08/07/2023 16:48,DBYRNE,7157,7866,N,,,,P,08/07/2023 16:49,ABODEN,,0,0,DBYRNE,08/07/2023 16:40,N,N
************5139,8,Shelley Birch,U,Shelley Birch,10119,C,10119,12/04/2023,2023,1,04/05/2023,2023,2,2023,2,30.00,5.00,25.00,B,20%,2023,2,Y,362012792,ASDA stores,Purchase a slow cooker for Mellor Family as no cooking facilities.,Other,3364,45201,,,People and Places,People and Places,Y,04/05/2023 14:56,SWHITTAKER,7074,7753,N,,,,Y,09/05/2023 09:20,CMASON,04/05/2023,2023,2,SWHITTAKER,04/05/2023 14:56,N,N
************5139,8,Shelley Birch,U,Shelley Birch,10243,C,10243,13/06/2023,2023,3,12/07/2023,2023,4,2023,4,96.95,16.16,80.79,B,20%,2023,4,,,Fleetwood Trophies,Purchase of 3 Trophies for Wyre Beat event 13.06.23,Other,3364,45201,,,People and Places,People and Places,Y,12/07/2023 12:21,SWHITTAKER,7158,7868,N,,,,P,12/07/2023 12:22,CMASON,,0,0,SWHITTAKER,12/07/2023 12:21,N,N
************4775,16,Gary Scott,S,Tracey Waistle,10070,C,10070,01/04/2023,2023,1,11/04/2023,2023,1,2023,1,292.50,0.00,292.50,D,0%,2023,1,,,DVLA,road tax V65 . PN13 HFJ,Other,6953,30502,v65,,People and Places,People and Places,Y,02/05/2023 15:02,JCARTRIDGE,7069,7712,N,,,,Y,02/05/2023 17:03,CGREEN,11/04/2023,2023,1,CCLOHERTYJONES,11/04/2023 14:00,N,N
************4775,16,Gary Scott,S,Tracey Waistle,10084,C,10084,17/04/2023,2023,1,19/04/2023,2023,1,2023,1,410.00,0.00,410.00,D,0%,2023,1,,,DVSA,MOT slots MOT-20230417-A5C36FDE,Other,3712,30502,,,People and Places,People and Places,Y,02/05/2023 14:52,JCARTRIDGE,7053,7717,N,,,,Y,02/05/2023 17:03,CGREEN,19/04/2023,2023,1,TWAISTLE,19/04/2023 14:48,N,N
************4775,16,Gary Scott,S,Tracey Waistle,10160,C,10160,26/04/2023,2023,1,05/06/2023,2023,3,2023,3,322.50,0.00,322.50,D,0%,2023,3,,,DVLA,tax v76,Other,6953,30502,v76,,People and Places,People and Places,Y,06/06/2023 08:49,JCARTRIDGE,7103,7786,N,,,,Y,10/07/2023 16:57,CGREEN,05/06/2023,2023,3,CCLOHERTYJONES,05/06/2023 13:13,N,N
************4775,16,Gary Scott,S,Tracey Waistle,10097,C,10097,28/04/2023,2023,1,03/05/2023,2023,2,2023,2,"1,980.00",330.00,"1,650.00",B,20%,2023,2,Y,396272951,Wyre Van Hire,Van Hire 28/04/2023 Invoice no: AJ23207W,Other,2201,40101,,,People and Places,People and Places,Y,30/05/2023 16:26,JCARTRIDGE,7088,7731,N,,,,Y,31/05/2023 09:34,CGREEN,03/05/2023,2023,2,TWAISTLE,03/05/2023 16:27,N,N
************4775,16,Gary Scott,S,Tracey Waistle,10192,C,10192,30/04/2023,2023,1,16/06/2023,2023,3,2023,3,322.50,0.00,322.50,D,0%,2023,3,,,DVLA,DVLA Vehicle Tax 1235-4849-5918-9839,Other,3420,30502,V99,,People and Places,People and Places,Y,16/06/2023 16:02,CCROOK,7115,7817,N,,,,Y,10/07/2023 16:57,CGREEN,16/06/2023,2023,3,TWAISTLE,16/06/2023 13:28,N,N
************4775,16,Gary Scott,S,Tracey Waistle,10193,C,10193,30/04/2023,2023,1,16/06/2023,2023,3,2023,3,322.50,0.00,322.50,D,0%,2023,3,,,DVLA,DVLA Vehicle Tax Ref: 1235-5563-0786-8212,Other,6953,30502,V77,,People and Places,People and Places,Y,16/06/2023 16:02,CCROOK,7115,7818,N,,,,Y,10/07/2023 16:57,CGREEN,16/06/2023,2023,3,TWAISTLE,16/06/2023 13:30,N,N
************4775,16,Gary Scott,S,Tracey Waistle,10090,C,10090,01/05/2023,2023,2,03/05/2023,2023,2,2023,2,167.50,0.00,167.50,D,0%,2023,2,,,DVLA,DVLA Vehicle Tax Ref: 1235-4686-4664-3837,Other,3420,30502,V123,,People and Places,People and Places,Y,09/05/2023 11:56,JCARTRIDGE,7078,7724,N,,,,Y,26/05/2023 16:40,CGREEN,03/05/2023,2023,2,TWAISTLE,03/05/2023 15:21,N,N
************4775,16,Gary Scott,S,Tracey Waistle,10091,C,10091,01/05/2023,2023,2,03/05/2023,2023,2,2023,2,167.50,0.00,167.50,D,0%,2023,2,,,DVLA,DVLA Vehicle Tax Ref: 1235-4686-4664-3829,Other,3420,30502,V124,,People and Places,People and Places,Y,09/05/2023 11:56,JCARTRIDGE,7078,7725,N,,,,Y,26/05/2023 16:40,CGREEN,03/05/2023,2023,2,TWAISTLE,03/05/2023 15:33,N,N
************4775,16,Gary Scott,S,Tracey Waistle,10088,C,10088,01/05/2023,2023,2,03/05/2023,2023,2,2023,2,167.50,0.00,167.50,D,0%,2023,2,,,DVLA,DVLA Vehicle Tax Ref: 1235-4686-4664-3860,Other,3420,30502,V125,,People and Places,People and Places,Y,09/05/2023 11:56,JCARTRIDGE,7078,7722,N,,,,Y,26/05/2023 16:40,CGREEN,03/05/2023,2023,2,TWAISTLE,03/05/2023 15:17,N,N
************4775,16,Gary Scott,S,Tracey Waistle,10092,C,10092,01/05/2023,2023,2,03/05/2023,2023,2,2023,2,322.50,0.00,322.50,D,0%,2023,2,,,DVLA,DVLA Vehicle Tax Ref: 1235-5563-0684-5088,Other,6955,30502,V59,,People and Places,People and Places,Y,09/05/2023 11:56,JCARTRIDGE,7078,7726,N,,,,Y,26/05/2023 16:40,CGREEN,03/05/2023,2023,2,TWAISTLE,03/05/2023 15:36,N,N
************4775,16,Gary Scott,S,Tracey Waistle,10095,C,10095,01/05/2023,2023,2,03/05/2023,2023,2,2023,2,322.50,0.00,322.50,D,0%,2023,2,,,DVLA,DVLA Vehicle Tax Ref: 1235-5563-0786-5713,Other,6953,30502,V76,,People and Places,People and Places,Y,09/05/2023 11:56,JCARTRIDGE,7078,7729,N,,,,Y,26/05/2023 16:40,CGREEN,03/05/2023,2023,2,TWAISTLE,03/05/2023 15:44,N,N
************4775,16,Gary Scott,S,Tracey Waistle,10087,C,10087,01/05/2023,2023,2,03/05/2023,2023,2,2023,2,322.50,0.00,322.50,D,0%,2023,2,,,DVLA,DVLA Vehicle Tax Ref: 1235-2811-8727-3470,Other,3420,30502,V87,,People and Places,People and Places,Y,09/05/2023 11:56,JCARTRIDGE,7078,7721,N,,,,Y,26/05/2023 16:40,CGREEN,03/05/2023,2023,2,TWAISTLE,03/05/2023 15:10,N,N
************4775,16,Gary Scott,S,Tracey Waistle,10164,C,10164,15/05/2023,2023,2,09/06/2023,2023,3,2023,3,358.80,59.80,299.00,B,20%,2023,3,Y,177952458,SNAP-ON,12V Battery charger Invoice no: 051523135482,Other,6955,40100,,,People and Places,People and Places,Y,12/06/2023 11:41,JCARTRIDGE,7106,7790,N,,,,Y,10/07/2023 16:57,CGREEN,09/06/2023,2023,3,TWAISTLE,09/06/2023 10:30,N,N
************4775,16,Gary Scott,S,Tracey Waistle,10181,C,10181,16/05/2023,2023,2,09/06/2023,2023,3,2023,3,9.00,1.50,7.50,B,20%,2023,3,Y,992488166,AutoBitz Motor Factors,Parts,Other,6953,30507,V104,,People and Places,People and Places,Y,12/06/2023 11:41,JCARTRIDGE,7106,7807,N,,,,Y,10/07/2023 16:57,CGREEN,09/06/2023,2023,3,TWAISTLE,09/06/2023 13:46,N,N
************4775,16,Gary Scott,S,Tracey Waistle,10261,C,10261,26/05/2023,2023,2,13/07/2023,2023,4,2023,4,47.96,8.00,39.96,B,20%,2023,4,Y,232555575,Screwfix,Hose and sprinkler Order no: A12218354420,Other,6953,42002,,,People and Places,People and Places,Y,13/07/2023 15:27,TWAISTLE,7172,7887,N,,,,P,13/07/2023 15:28,CGREEN,,0,0,TWAISTLE,13/07/2023 14:22,N,N
************4775,16,Gary Scott,S,Tracey Waistle,10165,C,10165,31/05/2023,2023,2,09/06/2023,2023,3,2023,3,107.50,0.00,107.50,D,0%,2023,3,,,DVLA,DVLA Vehicle Tax 1236-5998-4578-1306 RK19 OPE,Other,3420,30502,V117,,People and Places,People and Places,Y,12/06/2023 11:41,JCARTRIDGE,7106,7791,N,,,,Y,10/07/2023 16:57,CGREEN,09/06/2023,2023,3,TWAISTLE,09/06/2023 10:33,N,N
************4775,16,Gary Scott,S,Tracey Waistle,10262,C,10262,13/06/2023,2023,3,13/07/2023,2023,4,2023,4,149.23,24.87,124.36,B,20%,2023,4,Y,804177150,Auto Styling Truckman Group,Parts Invoice no: 283133,Other,6955,30507,V40,,People and Places,People and Places,Y,13/07/2023 15:28,TWAISTLE,7173,7888,N,,,,P,13/07/2023 15:28,CGREEN,,0,0,TWAISTLE,13/07/2023 14:27,N,N
************4775,16,Gary Scott,S,Tracey Waistle,10194,C,10194,14/06/2023,2023,3,16/06/2023,2023,3,2023,3,"2,214.00",369.00,"1,845.00",B,20%,2023,3,Y,895558261,Fence Supplies UK,Budget Mesh Panel Fence Coupler Invoice no: 8808 K White,Other,3260,42002,,,People and Places,People and Places,Y,29/06/2023 14:48,JCARTRIDGE,7127,7819,N,,,,Y,10/07/2023 16:57,CGREEN,16/06/2023,2023,3,TWAISTLE,16/06/2023 13:57,N,N
************4775,16,Gary Scott,S,Tracey Waistle,10218,C,10218,19/06/2023,2023,3,23/06/2023,2023,3,2023,3,540.00,90.00,450.00,B,20%,2023,3,Y,177952458,Morley D Limited t/a Snap-on,Torq elec Equipment Invoice no: 061923136757,Other,6955,40100,,,People and Places,People and Places,Y,03/07/2023 16:10,JCARTRIDGE,7149,7842,N,,,,Y,10/07/2023 16:57,CGREEN,23/06/2023,2023,3,TWAISTLE,23/06/2023 18:26,N,N
************4775,16,Gary Scott,S,Tracey Waistle,10219,C,10219,19/06/2023,2023,3,23/06/2023,2023,3,2023,3,"1,051.20",175.20,876.00,B,20%,2023,3,Y,GB996757828,BIG TYRES LIMITED,Tyres Invoice no: IN-53933,Other,6955,30503,,,People and Places,People and Places,Y,29/06/2023 14:48,JCARTRIDGE,7126,7843,N,,,,Y,10/07/2023 16:57,CGREEN,23/06/2023,2023,3,TWAISTLE,23/06/2023 18:29,N,N
************4775,16,Gary Scott,S,Tracey Waistle,10263,C,10263,27/06/2023,2023,3,13/07/2023,2023,4,2023,4,90.00,15.00,75.00,B,20%,2023,4,Y,GB497612507,Turnkey Instruments Ltd,12-Monthly statutory services Decelerometer (MOT Station) Invoice no: 82206,Other,3712,40100,,,People and Places,People and Places,Y,13/07/2023 15:28,TWAISTLE,7174,7889,N,,,,P,13/07/2023 15:28,CGREEN,,0,0,TWAISTLE,13/07/2023 14:33,N,N
************4775,16,Gary Scott,S,Tracey Waistle,10264,C,10264,28/06/2023,2023,3,13/07/2023,2023,4,2023,4,66.60,11.10,55.50,B,20%,2023,4,Y,943720229,NC & DJ BILLINGTON T/A TUDOR TURF,Turf Invoice no: 4179,Other,6953,42002,,,People and Places,People and Places,N,,,0,7890,N,,,,N,,,,0,0,TWAISTLE,13/07/2023 14:37,N,N
************4775,16,Gary Scott,S,Tracey Waistle,10268,C,10268,30/06/2023,2023,3,13/07/2023,2023,4,2023,4,322.50,0.00,322.50,D,0%,2023,4,,,DVLA,DVLA Vehicle Tax Application ref: 1237-5569-1376-1684,Other,5221,30502,V100,,People and Places,People and Places,N,,,0,7894,N,,,,N,,,,0,0,TWAISTLE,13/07/2023 14:53,N,N
************4775,16,Gary Scott,S,Tracey Waistle,10269,C,10269,30/06/2023,2023,3,13/07/2023,2023,4,2023,4,322.50,0.00,322.50,D,0%,2023,4,,,DVLA,DVLA Vehicle Tax Application ref: 1237-5569-1376-2476,Other,6902,30502,V101,,People and Places,People and Places,N,,,0,7895,N,,,,N,,,,0,0,TWAISTLE,13/07/2023 14:55,N,N
************0987,21,Mr David Twiss,S,Tracey Waistle,10110,C,10110,26/04/2023,2023,1,03/05/2023,2023,2,2023,2,90.00,15.00,75.00,B,20%,2023,2,Y,322910977,Redmarsh Roofing,Dura Torch Election Ramps Receipt Invoice no: 51152,Other,2201,40100,,,People and Places,People and Places,Y,09/05/2023 11:55,JCARTRIDGE,7077,7744,N,,,,Y,16/05/2023 10:31,GSCOTT,03/05/2023,2023,2,TWAISTLE,03/05/2023 17:23,N,N
************0987,21,Mr David Twiss,S,Tracey Waistle,10109,C,10109,26/04/2023,2023,1,03/05/2023,2023,2,2023,2,577.42,96.24,481.18,B,20%,2023,2,Y,713607454,HUWS GRAY LTD,Timber Election Ramps Receipt Invoice no: S6L67886,Other,2201,40100,,,People and Places,People and Places,Y,09/05/2023 11:55,JCARTRIDGE,7077,7743,N,,,,Y,16/05/2023 10:31,GSCOTT,03/05/2023,2023,2,TWAISTLE,03/05/2023 17:20,N,N
************0987,21,Mr David Twiss,S,Tracey Waistle,10108,C,10108,27/04/2023,2023,1,03/05/2023,2023,2,2023,2,187.97,31.33,156.64,B,20%,2023,2,Y,713607454,HUWS GRAY LTD,Timber Election Ramps Receipt Invoice no: S6L68096,Other,2201,40100,,,People and Places,People and Places,Y,09/05/2023 11:55,JCARTRIDGE,7077,7742,N,,,,Y,16/05/2023 10:31,GSCOTT,03/05/2023,2023,2,TWAISTLE,03/05/2023 17:18,N,N
************0987,21,Mr David Twiss,S,Tracey Waistle,10166,C,10166,18/05/2023,2023,2,09/06/2023,2023,3,2023,3,34.56,5.76,28.80,B,20%,2023,3,Y,713607454,HUWS GRAY LTD,Timber Invoice number: S5L59864 King Georges Field fence,Other,6953,42002,,,People and Places,People and Places,Y,12/06/2023 11:40,JCARTRIDGE,7105,7792,N,,,,Y,12/06/2023 11:58,GSCOTT,09/06/2023,2023,3,TWAISTLE,09/06/2023 10:41,N,N
************0987,21,Mr David Twiss,S,Tracey Waistle,10222,C,10222,01/06/2023,2023,3,23/06/2023,2023,3,2023,3,159.85,26.64,133.21,B,20%,2023,3,,416501973,The Lock Shop,Padlock & Keys Stalmine c/p / playarea Receipt Delivery note no: 43674,Other,4190,28050,,,People and Places,People and Places,Y,29/06/2023 14:48,JCARTRIDGE,7128,7846,N,,,,Y,03/07/2023 16:18,GSCOTT,23/06/2023,2023,3,TWAISTLE,23/06/2023 18:48,N,N
************0987,21,Mr David Twiss,S,Tracey Waistle,10221,C,10221,02/06/2023,2023,3,23/06/2023,2023,3,2023,3,51.97,8.66,43.31,B,20%,2023,3,Y,169404101,Shell West View,Fuel Receipt only,Other,3260,42002,,,People and Places,People and Places,Y,29/06/2023 14:48,JCARTRIDGE,7129,7845,N,,,,Y,03/07/2023 16:18,GSCOTT,23/06/2023,2023,3,TWAISTLE,23/06/2023 18:42,N,N
************0987,21,Mr David Twiss,S,Tracey Waistle,10270,C,10270,27/06/2023,2023,3,13/07/2023,2023,4,2023,4,50.00,0.00,50.00,D,0%,2023,4,,906859096,Specsavers,HGV Eye test Dave Twiss Receipt,Other,6902,18001,,,People and Places,People and Places,Y,13/07/2023 15:51,TWAISTLE,7175,7896,N,,,,Y,13/07/2023 15:53,GSCOTT,13/07/2023,2023,4,TWAISTLE,13/07/2023 15:45,N,N
************6873,26,Miss Susan J Houton,U,Susan Houton,10190,C,10190,14/06/2023,2023,3,16/06/2023,2023,3,2023,3,20.10,3.35,16.75,B,20%,2023,3,Y,,ASDA STORES LTD,CCTV Volunteer Supplies (Wipes/Bin liners/Chocolate Biscuits),Other,3361,14010,,,People and Places,People and Places,Y,30/06/2023 08:57,SHOUTON,7147,7816,N,,,,P,30/06/2023 08:57,NGREENWOOD,,0,0,SHOUTON,16/06/2023 09:15,N,N
************6873,26,Miss Susan J Houton,U,Susan Houton,10191,C,10191,14/06/2023,2023,3,16/06/2023,2023,3,2023,3,45.09,0.00,45.09,D,0%,2023,3,Y,,ASDA STORES LTD,CCTV Volunteer Supplies (Tea/Coffee/Sugar/Biscuits),Other,3361,14010,,,People and Places,People and Places,Y,30/06/2023 08:57,SHOUTON,7147,7816,N,,,,P,30/06/2023 08:57,NGREENWOOD,,0,0,SHOUTON,16/06/2023 09:17,N,N
************9017,27,Mark Thomason,S,Tracey Waistle,10074,C,10074,04/04/2023,2023,1,11/04/2023,2023,1,2023,1,39.94,1.90,38.04,G,5%,2023,1,Y,322910977,redmarsh roofing,1 x 14kg gas,Other,4220,21004,,,People and Places,People and Places,Y,02/05/2023 14:52,JCARTRIDGE,7054,7713,N,,,,Y,09/05/2023 14:02,GSCOTT,11/04/2023,2023,1,CCLOHERTYJONES,11/04/2023 14:26,N,N
************9017,27,Mark Thomason,S,Tracey Waistle,10075,C,10075,04/04/2023,2023,1,11/04/2023,2023,1,2023,1,76.80,12.80,64.00,B,20%,2023,1,Y,322910977,redmarsh roofing,1 gas bottle 1 torch,Other,4220,21004,,,People and Places,People and Places,Y,02/05/2023 14:52,JCARTRIDGE,7055,7713,N,,,,Y,09/05/2023 14:03,GSCOTT,11/04/2023,2023,1,CCLOHERTYJONES,11/04/2023 14:28,N,N
************9017,27,Mark Thomason,S,Tracey Waistle,10107,C,10107,13/04/2023,2023,1,03/05/2023,2023,2,2023,2,10.27,1.71,8.56,B,20%,2023,2,Y,713607454,HUWS GRAY LTD,Bolt For electric box outside new beach chalets Receipt Invoice no: S5L56886,Other,3260,42002,,,People and Places,People and Places,Y,09/05/2023 11:59,JCARTRIDGE,7081,7741,N,,,,Y,09/05/2023 14:03,GSCOTT,03/05/2023,2023,2,TWAISTLE,03/05/2023 17:15,N,N
************9017,27,Mark Thomason,S,Tracey Waistle,10167,C,10167,04/05/2023,2023,2,09/06/2023,2023,3,2023,3,49.38,8.23,41.15,B,20%,2023,3,Y,713607454,HUWS GRAY LTD,Timber and Paint Inv no: S5L58704 Bus Shelters R16770,Other,4220,21004,,,People and Places,People and Places,Y,12/06/2023 11:43,JCARTRIDGE,7109,7793,N,,,,Y,13/07/2023 15:53,GSCOTT,09/06/2023,2023,3,TWAISTLE,09/06/2023 10:44,N,N
************9017,27,Mark Thomason,S,Tracey Waistle,10220,C,10220,02/06/2023,2023,3,23/06/2023,2023,3,2023,3,198.58,33.10,165.48,B,20%,2023,3,Y,GB517712550,Haldane Fisher Garstang,Timber Invoice no: 1200/00051040,Other,6953,42002,,,People and Places,People and Places,Y,29/06/2023 14:48,JCARTRIDGE,7130,7844,N,,,,Y,13/07/2023 15:53,GSCOTT,23/06/2023,2023,3,TWAISTLE,23/06/2023 18:37,N,N
************9017,27,Mark Thomason,S,Tracey Waistle,10271,C,10271,07/06/2023,2023,3,13/07/2023,2023,4,2023,4,444.36,0.00,444.36,D,0%,2023,4,,,STONE UK LTD,Steps and Copings Job no: 604 R16625,Other,6953,42002,,,People and Places,People and Places,Y,13/07/2023 15:52,TWAISTLE,7176,7897,N,,,,Y,13/07/2023 15:53,GSCOTT,13/07/2023,2023,4,TWAISTLE,13/07/2023 15:50,N,N
************1859,31,Mr J Pearson,U,Jonny Pearson,10275,C,10275,01/06/2023,2023,3,17/07/2023,2023,4,2023,4,519.00,86.50,432.50,B,20%,2023,4,,,CURRYS ONLINE,x1 REMARKABLE - 2 with Marker Plus & Grey Polymer Weave Folio Case,Other,6404,43500,43500,,Resources,Resources,Y,17/07/2023 10:20,JPEARSON,7179,7901,N,,,,Y,17/07/2023 11:52,LBROPHY,17/07/2023,2023,4,JPEARSON,17/07/2023 10:19,N,N
************1859,31,Mr J Pearson,U,Jonny Pearson,10276,C,10276,05/06/2023,2023,3,17/07/2023,2023,4,2023,4,519.00,86.50,432.50,B,20%,2023,4,,,CURRYS ONLINE,x1 REMARKABLE - 2 with Marker Plus & Grey Polymer Weave Folio Case,Other,6404,43500,43500,,Resources,Resources,Y,17/07/2023 10:20,JPEARSON,7179,7901,N,,,,Y,17/07/2023 11:52,LBROPHY,17/07/2023,2023,4,JPEARSON,17/07/2023 10:20,N,N
************2135,32,Miss O F Cordingley,U,Olivia Cordingley,10082,C,10082,04/04/2023,2023,1,11/04/2023,2023,1,2023,1,150.00,0.00,150.00,R,0%,2023,1,,,Next,Long Service Award - Next Voucher 150 SS,Other,6703,16201,,,Resources,Resources,Y,02/05/2023 14:52,JCARTRIDGE,7056,7715,N,,,,Y,02/05/2023 17:03,JBILLINGTON,11/04/2023,2023,1,OCORDINGLEY,11/04/2023 15:58,N,N
************2135,32,Miss O F Cordingley,U,Olivia Cordingley,10143,C,10143,26/04/2023,2023,1,26/05/2023,2023,2,2023,2,120.82,0.00,120.82,R,0%,2023,2,,,Linkedin,Recruiter Lite Monthly Subscription April,Other,6401,15200,,,Resources,Resources,Y,26/05/2023 15:47,OCORDINGLEY,7086,7766,N,,,,Y,03/07/2023 17:38,JBILLINGTON,26/05/2023,2023,2,OCORDINGLEY,26/05/2023 15:47,N,N
************2135,32,Miss O F Cordingley,U,Olivia Cordingley,10289,C,10289,26/05/2023,2023,2,18/07/2023,2023,4,2023,4,120.82,0.00,120.82,R,0%,2023,4,,,Linkedin,Recruiter Lite Subscription May 2023,Other,6401,15200,,,Resources,Resources,Y,18/07/2023 11:44,OCORDINGLEY,7181,7906,N,,,,Y,18/07/2023 11:47,JBILLINGTON,18/07/2023,2023,4,OCORDINGLEY,18/07/2023 11:43,N,N
************2135,32,Miss O F Cordingley,U,Olivia Cordingley,10291,C,10291,02/06/2023,2023,3,18/07/2023,2023,4,2023,4,145.01,0.00,145.01,R,0%,2023,4,,,Indeed,Housing Options Advisor Recruitment Advertising on Indeed - 145.01,Other,5140,15200,,,Resources,Resources,Y,18/07/2023 12:02,OCORDINGLEY,7182,7907,N,,,,Y,18/07/2023 12:09,JBILLINGTON,18/07/2023,2023,4,OCORDINGLEY,18/07/2023 12:02,N,N
************2135,32,Miss O F Cordingley,U,Olivia Cordingley,10184,C,10184,12/06/2023,2023,3,14/06/2023,2023,3,2023,3,18.00,0.00,18.00,R,0%,2023,3,,,Gov.uk,Rebecca Huddleston DBS Check for MOT,Other,6503,42601,,,Resources,Resources,Y,29/06/2023 14:48,JCARTRIDGE,7131,7810,N,,,,Y,03/07/2023 17:38,JBILLINGTON,14/06/2023,2023,3,OCORDINGLEY,14/06/2023 09:40,N,N
************2135,32,Miss O F Cordingley,U,Olivia Cordingley,10205,C,10205,20/06/2023,2023,3,20/06/2023,2023,3,2023,3,150.00,0.00,150.00,R,0%,2023,3,,,Zara,Zara Gift Voucher - Long Service Award SO,Other,6600,16201,,,Resources,Resources,Y,03/07/2023 16:10,JCARTRIDGE,7148,7826,N,,,,Y,03/07/2023 17:39,JBILLINGTON,20/06/2023,2023,3,OCORDINGLEY,20/06/2023 14:47,N,N
************2135,32,Miss O F Cordingley,U,Olivia Cordingley,10290,C,10290,26/06/2023,2023,3,18/07/2023,2023,4,2023,4,120.82,0.00,120.82,R,0%,2023,4,,,Linkedin,Recruiter Lite Subscription June 2023,Other,6401,15200,,,Resources,Resources,Y,18/07/2023 11:44,OCORDINGLEY,7181,7906,N,,,,Y,18/07/2023 11:47,JBILLINGTON,18/07/2023,2023,4,OCORDINGLEY,18/07/2023 11:44,N,N
************6498,34,P J Holroyd,U,Pamela Holroyd,10111,C,10111,06/04/2023,2023,1,04/05/2023,2023,2,2023,2,661.00,110.17,550.83,B,20%,2023,2,,,premier inn,Shelton TA,Other,5140,46814,,,Resources,Resources,Y,04/05/2023 09:57,PHOLROYD,7072,7745,N,,,,Y,04/05/2023 10:53,MBROADHURST,04/05/2023,2023,2,PHOLROYD,04/05/2023 09:45,N,N
************6498,34,P J Holroyd,U,Pamela Holroyd,10112,C,10112,13/04/2023,2023,1,04/05/2023,2023,2,2023,2,77.00,12.83,64.17,B,20%,2023,2,,,premier inn,TA shelton family,Other,5140,46814,,,Resources,Resources,Y,04/05/2023 09:57,PHOLROYD,7072,7746,N,,,,Y,04/05/2023 10:53,MBROADHURST,04/05/2023,2023,2,PHOLROYD,04/05/2023 09:47,N,N
************6498,34,P J Holroyd,U,Pamela Holroyd,10113,C,10113,14/04/2023,2023,1,04/05/2023,2023,2,2023,2,269.00,44.83,224.17,B,20%,2023,2,,,premier,shelton TA,Other,5140,46814,,,Resources,Resources,Y,04/05/2023 09:57,PHOLROYD,7072,7747,N,,,,Y,04/05/2023 10:53,MBROADHURST,04/05/2023,2023,2,PHOLROYD,04/05/2023 09:48,N,N
************6498,34,P J Holroyd,U,Pamela Holroyd,10118,C,10118,17/04/2023,2023,1,04/05/2023,2023,2,2023,2,217.50,36.25,181.25,B,20%,2023,2,,,premier,TA for family Shelton,Other,5140,46814,,,Resources,Resources,Y,04/05/2023 09:59,PHOLROYD,7073,7752,N,,,,Y,04/05/2023 10:53,MBROADHURST,04/05/2023,2023,2,PHOLROYD,04/05/2023 09:58,N,N
************6498,34,P J Holroyd,U,Pamela Holroyd,10115,C,10115,20/04/2023,2023,1,04/05/2023,2023,2,2023,2,65.00,10.83,54.17,B,20%,2023,2,,,premier,Shelton family,Other,5140,46814,,,Resources,Resources,Y,04/05/2023 09:57,PHOLROYD,7072,7749,N,,,,Y,04/05/2023 10:53,MBROADHURST,04/05/2023,2023,2,PHOLROYD,04/05/2023 09:50,N,N
************6498,34,P J Holroyd,U,Pamela Holroyd,10116,C,10116,20/04/2023,2023,1,04/05/2023,2023,2,2023,2,162.95,27.16,135.79,B,20%,2023,2,Y,145899025,ARGOS,Bed for DA - Mrs R Clarke,Other,5140,64002,DA,,Resources,Resources,Y,04/05/2023 09:57,PHOLROYD,7072,7750,N,,,,Y,04/05/2023 10:53,MBROADHURST,04/05/2023,2023,2,PHOLROYD,04/05/2023 09:53,N,N
************6498,34,P J Holroyd,U,Pamela Holroyd,10117,C,10117,24/04/2023,2023,1,04/05/2023,2023,2,2023,2,207.95,34.66,173.29,B,20%,2023,2,,145899025,ARGOS,Bed for m riley,Other,5140,64002,,,Resources,Resources,Y,04/05/2023 09:57,PHOLROYD,7072,7751,N,,,,Y,04/05/2023 10:53,MBROADHURST,04/05/2023,2023,2,PHOLROYD,04/05/2023 09:55,N,N
************6498,34,P J Holroyd,U,Pamela Holroyd,10145,C,10145,28/04/2023,2023,1,30/05/2023,2023,2,2023,2,255.30,42.55,212.75,B,20%,2023,2,,,avanti westcoast,Travel to Watts household,Travel and Accommodation,5140,64002,,,Resources,Resources,Y,30/05/2023 17:28,PHOLROYD,7094,7769,N,,,,Y,30/05/2023 17:52,MBROADHURST,30/05/2023,2023,2,PHOLROYD,30/05/2023 17:24,N,N
************6498,34,P J Holroyd,U,Pamela Holroyd,10149,C,10149,04/05/2023,2023,2,31/05/2023,2023,2,2023,2,487.95,81.33,406.62,B,20%,2023,2,,145899025,ARGOS,DA goods,Other,5140,64002,da,,Resources,Resources,Y,31/05/2023 13:48,PHOLROYD,7095,7773,N,,,,Y,31/05/2023 16:35,MBROADHURST,31/05/2023,2023,2,PHOLROYD,31/05/2023 13:48,N,N
************6498,34,P J Holroyd,U,Pamela Holroyd,10148,C,10148,11/05/2023,2023,2,31/05/2023,2023,2,2023,2,260.00,43.33,216.67,B,20%,2023,2,,145899025,ARGOS,whire good da victim,Other,5140,64002,da,,Resources,Resources,Y,31/05/2023 13:48,PHOLROYD,7095,7772,N,,,,Y,31/05/2023 16:35,MBROADHURST,31/05/2023,2023,2,PHOLROYD,31/05/2023 13:46,N,N
************6498,34,P J Holroyd,U,Pamela Holroyd,10147,C,10147,12/05/2023,2023,2,30/05/2023,2023,2,2023,2,494.60,82.43,412.17,B,20%,2023,2,,,travel lodge,TA Thornton household,Travel and Accommodation,5140,46814,,,Resources,Resources,Y,30/05/2023 17:28,PHOLROYD,7094,7771,N,,,,Y,30/05/2023 17:52,MBROADHURST,30/05/2023,2023,2,PHOLROYD,30/05/2023 17:27,N,N
************6498,34,P J Holroyd,U,Pamela Holroyd,10146,C,10146,22/05/2023,2023,2,30/05/2023,2023,2,2023,2,264.13,44.02,220.11,B,20%,2023,2,,,travellodge,Ta for Thornton household,Travel and Accommodation,5140,33000,,,Resources,Resources,Y,30/05/2023 17:28,PHOLROYD,7094,7770,N,,,,Y,30/05/2023 17:52,MBROADHURST,30/05/2023,2023,2,PHOLROYD,30/05/2023 17:26,N,N
************6498,34,P J Holroyd,U,Pamela Holroyd,10144,C,10144,25/05/2023,2023,2,30/05/2023,2023,2,2023,2,700.00,116.67,583.33,B,20%,2023,2,,,quays,Ta for PN family thornton,Other,5140,46814,,,Resources,Resources,Y,30/05/2023 17:28,PHOLROYD,7094,7768,N,,,,Y,30/05/2023 17:52,MBROADHURST,30/05/2023,2023,2,PHOLROYD,30/05/2023 17:23,N,N
************6498,34,P J Holroyd,U,Pamela Holroyd,10225,C,10225,31/05/2023,2023,2,05/07/2023,2023,4,2023,4,505.00,84.17,420.83,B,20%,2023,4,,,booking.com,TA for A Swales,Other,5140,64002,DA,,Resources,Resources,Y,05/07/2023 14:43,PHOLROYD,7153,7849,N,,,,Y,05/07/2023 15:51,MBROADHURST,05/07/2023,2023,4,PHOLROYD,05/07/2023 13:27,N,N
************6498,34,P J Holroyd,U,Pamela Holroyd,10239,C,10239,02/06/2023,2023,3,05/07/2023,2023,4,2023,4,"1,226.30",204.38,"1,021.92",B,20%,2023,4,,,victoria quays,L Thornton,Other,5140,46814,,,Resources,Resources,Y,05/07/2023 14:45,PHOLROYD,7154,7864,N,,,,Y,05/07/2023 15:51,MBROADHURST,05/07/2023,2023,4,PHOLROYD,05/07/2023 14:44,N,N
************6498,34,P J Holroyd,U,Pamela Holroyd,10227,C,10227,06/06/2023,2023,3,05/07/2023,2023,4,2023,4,469.20,78.20,391.00,B,20%,2023,4,,,PREMIER INN,TA SYKES,Other,5140,46814,,,Resources,Resources,Y,05/07/2023 14:43,PHOLROYD,7153,7851,N,,,,Y,05/07/2023 15:51,MBROADHURST,05/07/2023,2023,4,PHOLROYD,05/07/2023 13:30,N,N
************6498,34,P J Holroyd,U,Pamela Holroyd,10228,C,10228,09/06/2023,2023,3,05/07/2023,2023,4,2023,4,339.30,56.55,282.75,B,20%,2023,4,,,victoria quays,TA L thornton,Other,5140,46814,,,Resources,Resources,Y,05/07/2023 14:43,PHOLROYD,7153,7852,N,,,,Y,05/07/2023 15:51,MBROADHURST,05/07/2023,2023,4,PHOLROYD,05/07/2023 13:33,N,N
************6498,34,P J Holroyd,U,Pamela Holroyd,10229,C,10229,12/06/2023,2023,3,05/07/2023,2023,4,2023,4,143.00,23.83,119.17,B,20%,2023,4,,,booking.com,TA M Tysoe,Other,5140,46814,,,Resources,Resources,Y,05/07/2023 14:43,PHOLROYD,7153,7853,N,,,,Y,05/07/2023 15:51,MBROADHURST,05/07/2023,2023,4,PHOLROYD,05/07/2023 13:36,N,N
************6498,34,P J Holroyd,U,Pamela Holroyd,10231,C,10231,14/06/2023,2023,3,05/07/2023,2023,4,2023,4,66.02,11.00,55.02,B,20%,2023,4,,,NORTHERN RAIL LTD,RRP,Other,5140,46846,,,Resources,Resources,Y,05/07/2023 14:43,PHOLROYD,7153,7855,N,,,,Y,05/07/2023 15:51,MBROADHURST,05/07/2023,2023,4,PHOLROYD,05/07/2023 13:40,N,N
************6498,34,P J Holroyd,U,Pamela Holroyd,10232,C,10232,15/06/2023,2023,3,05/07/2023,2023,4,2023,4,22.00,3.67,18.33,B,20%,2023,4,,,booking.com,TA Tysoe,Other,5140,46814,,,Resources,Resources,Y,05/07/2023 14:43,PHOLROYD,7153,7856,N,,,,Y,05/07/2023 15:51,MBROADHURST,05/07/2023,2023,4,PHOLROYD,05/07/2023 13:42,N,N
************6498,34,P J Holroyd,U,Pamela Holroyd,10233,C,10233,19/06/2023,2023,3,05/07/2023,2023,4,2023,4,483.40,80.57,402.83,B,20%,2023,4,,,TRAVELODGE,D Sykes TA,Other,5140,46814,,,Resources,Resources,Y,05/07/2023 14:43,PHOLROYD,7153,7857,N,,,,Y,05/07/2023 15:51,MBROADHURST,05/07/2023,2023,4,PHOLROYD,05/07/2023 13:44,N,N
************6498,34,P J Holroyd,U,Pamela Holroyd,10234,C,10234,20/06/2023,2023,3,05/07/2023,2023,4,2023,4,218.99,36.50,182.49,B,20%,2023,4,,,CURRYS,Essentai items,Other,5140,46846,,,Resources,Resources,Y,05/07/2023 14:43,PHOLROYD,7153,7859,N,,,,Y,05/07/2023 15:51,MBROADHURST,05/07/2023,2023,4,PHOLROYD,05/07/2023 14:00,N,N
************6498,34,P J Holroyd,U,Pamela Holroyd,10235,C,10235,22/06/2023,2023,3,05/07/2023,2023,4,2023,4,70.00,11.67,58.33,B,20%,2023,4,,,MOVE HOLMES,Secure perm accommodation- Amanda Finch,Other,5140,64002,,,Resources,Resources,Y,05/07/2023 14:43,PHOLROYD,7153,7860,N,,,,Y,05/07/2023 15:51,MBROADHURST,05/07/2023,2023,4,PHOLROYD,05/07/2023 14:03,N,N
************6498,34,P J Holroyd,U,Pamela Holroyd,10236,C,10236,22/06/2023,2023,3,05/07/2023,2023,4,2023,4,336.00,56.00,280.00,B,20%,2023,4,,,booking.com,TA for Family A Swales,Other,5140,64002,DA,,Resources,Resources,Y,05/07/2023 14:43,PHOLROYD,7153,7861,N,,,,Y,05/07/2023 15:51,MBROADHURST,05/07/2023,2023,4,PHOLROYD,05/07/2023 14:08,N,N
************6498,34,P J Holroyd,U,Pamela Holroyd,10237,C,10237,26/06/2023,2023,3,05/07/2023,2023,4,2023,4,474.00,79.00,395.00,B,20%,2023,4,,,booking.com,TA olivia Orchanson,Other,5140,46814,,,Resources,Resources,Y,05/07/2023 14:43,PHOLROYD,7153,7862,N,,,,Y,05/07/2023 15:51,MBROADHURST,05/07/2023,2023,4,PHOLROYD,05/07/2023 14:31,N,N
************6498,34,P J Holroyd,U,Pamela Holroyd,10238,C,10238,26/06/2023,2023,3,05/07/2023,2023,4,2023,4,546.64,91.11,455.53,B,20%,2023,4,,,TRAVELODGE,D sykes TA,Other,5140,46814,,,Resources,Resources,Y,05/07/2023 14:43,PHOLROYD,7153,7863,N,,,,Y,05/07/2023 15:51,MBROADHURST,05/07/2023,2023,4,PHOLROYD,05/07/2023 14:41,N,N
************8505,35,ROBERT L GREAVES,S,Tracey Waistle,10083,C,10083,04/04/2023,2023,1,18/04/2023,2023,1,2023,1,"1,808.35",301.39,"1,506.96",B,20%,2023,1,Y,901636252,aitch,various items,Other,6902,,,,People and Places,People and Places,Y,02/05/2023 14:52,JCARTRIDGE,7057,7716,N,,,,Y,03/05/2023 09:14,GSCOTT,18/04/2023,2023,1,CCLOHERTYJONES,18/04/2023 14:25,N,N
************8505,35,ROBERT L GREAVES,S,Tracey Waistle,10079,C,10079,05/04/2023,2023,1,11/04/2023,2023,1,2023,1,7.98,1.33,6.65,B,20%,2023,1,Y,232555575,screwfix,vent cover,Other,6953,42002,,,People and Places,People and Places,Y,02/05/2023 14:52,JCARTRIDGE,7058,7714,N,,,,Y,03/05/2023 09:14,GSCOTT,11/04/2023,2023,1,CCLOHERTYJONES,11/04/2023 15:11,N,N
************8505,35,ROBERT L GREAVES,S,Tracey Waistle,10081,C,10081,05/04/2023,2023,1,11/04/2023,2023,1,2023,1,9.00,1.50,7.50,B,20%,2023,1,Y,149520855,J. W Fish,4vent cover,Other,6953,42002,,,People and Places,People and Places,Y,02/05/2023 14:52,JCARTRIDGE,7060,7714,N,,,,Y,03/05/2023 09:14,GSCOTT,11/04/2023,2023,1,CCLOHERTYJONES,11/04/2023 15:14,N,N
************8505,35,ROBERT L GREAVES,S,Tracey Waistle,10080,C,10080,05/04/2023,2023,1,11/04/2023,2023,1,2023,1,18.62,3.10,15.52,B,20%,2023,1,Y,713607454,huws gray,vent,Other,6953,42002,,,People and Places,People and Places,Y,02/05/2023 14:52,JCARTRIDGE,7059,7714,N,,,,Y,03/05/2023 09:14,GSCOTT,11/04/2023,2023,1,CCLOHERTYJONES,11/04/2023 15:12,N,N
************8505,35,ROBERT L GREAVES,S,Tracey Waistle,10077,C,10077,06/04/2023,2023,1,11/04/2023,2023,1,2023,1,10.00,1.67,8.33,B,20%,2023,1,Y,408556737,toolstation,masking tape,Other,6955,42002,,,People and Places,People and Places,Y,02/05/2023 14:52,JCARTRIDGE,7063,7714,N,,,,Y,03/05/2023 09:14,GSCOTT,11/04/2023,2023,1,CCLOHERTYJONES,11/04/2023 14:32,N,N
************8505,35,ROBERT L GREAVES,S,Tracey Waistle,10076,C,10076,06/04/2023,2023,1,11/04/2023,2023,1,2023,1,75.96,12.66,63.30,B,20%,2023,1,Y,408556737,toolstation,white floor paint,Other,6955,42002,,,People and Places,People and Places,Y,02/05/2023 14:52,JCARTRIDGE,7062,7714,N,,,,Y,03/05/2023 09:14,GSCOTT,11/04/2023,2023,1,CCLOHERTYJONES,11/04/2023 14:30,N,N
************8505,35,ROBERT L GREAVES,S,Tracey Waistle,10078,C,10078,06/04/2023,2023,1,11/04/2023,2023,1,2023,1,89.98,15.00,74.98,B,20%,2023,1,Y,232555575,screwfix,floor paint,Other,6955,42002,,,People and Places,People and Places,Y,02/05/2023 14:52,JCARTRIDGE,7061,7714,N,,,,Y,03/05/2023 09:14,GSCOTT,11/04/2023,2023,1,CCLOHERTYJONES,11/04/2023 14:38,N,N
************8505,35,ROBERT L GREAVES,S,Tracey Waistle,10161,C,10161,06/04/2023,2023,1,05/06/2023,2023,3,2023,3,790.93,131.82,659.11,B,20%,2023,3,Y,200460037,tyrolit,drill rig and various saws,Other,3260,42002,,,People and Places,People and Places,Y,06/06/2023 08:50,JCARTRIDGE,7104,7787,N,,,,Y,06/06/2023 14:07,GSCOTT,05/06/2023,2023,3,CCLOHERTYJONES,05/06/2023 14:13,N,N
************8505,35,ROBERT L GREAVES,S,Tracey Waistle,10106,C,10106,12/04/2023,2023,1,03/05/2023,2023,2,2023,2,174.95,29.16,145.79,B,20%,2023,2,Y,232555575,Screwfix,Mats Elections Receipt Invoice no: A11628851511,Other,2201,40100,,,People and Places,People and Places,Y,09/05/2023 11:58,JCARTRIDGE,7080,7740,N,,,,Y,16/05/2023 10:30,GSCOTT,03/05/2023,2023,2,TWAISTLE,03/05/2023 17:12,N,N
************8505,35,ROBERT L GREAVES,S,Tracey Waistle,10123,C,10123,24/04/2023,2023,1,09/05/2023,2023,2,2023,2,69.00,11.50,57.50,B,20%,2023,2,,,blackpool power tools,1 dewalt battery for keith,Other,6953,40100,,,People and Places,People and Places,Y,09/05/2023 11:58,JCARTRIDGE,7080,7756,N,,,,Y,16/05/2023 10:30,GSCOTT,09/05/2023,2023,2,CCLOHERTYJONES,09/05/2023 09:57,N,N
************8505,35,ROBERT L GREAVES,S,Tracey Waistle,10124,C,10124,04/05/2023,2023,2,09/05/2023,2023,2,2023,2,5.96,0.99,4.97,B,20%,2023,2,,,morrisons,water for election cabins,Other,2201,40100,,,People and Places,People and Places,Y,30/05/2023 16:26,JCARTRIDGE,7090,7756,N,,,,Y,06/06/2023 14:07,GSCOTT,09/05/2023,2023,2,CCLOHERTYJONES,09/05/2023 11:35,N,N
************8505,35,ROBERT L GREAVES,S,Tracey Waistle,10256,C,10256,04/05/2023,2023,2,13/07/2023,2023,4,2023,4,5.96,0.00,5.96,D,0%,2023,4,,,Morrisons,Water Receipt,Other,2201,40100,,,People and Places,People and Places,N,,,0,7882,N,,,,N,,,,0,0,TWAISTLE,13/07/2023 13:25,N,N
************8505,35,ROBERT L GREAVES,S,Tracey Waistle,10254,C,10254,04/05/2023,2023,2,13/07/2023,2023,4,2023,4,16.95,2.83,14.12,B,20%,2023,4,Y,483398601,J`s Direct Electrics Ltd,Fan Heater Elections Receipt,Other,2201,40100,,,People and Places,People and Places,N,,,0,7881,N,,,,N,,,,0,0,TWAISTLE,13/07/2023 13:21,N,N
************8505,35,ROBERT L GREAVES,S,Tracey Waistle,10122,C,10122,04/05/2023,2023,2,09/05/2023,2023,2,2023,2,16.95,2.83,14.12,B,20%,2023,2,Y,483398601,J`s Direct Electrics Ltd,1 x fan heater = election cabins,Other,2201,40100,,,People and Places,People and Places,Y,30/05/2023 16:26,JCARTRIDGE,7089,7756,N,,,,Y,06/06/2023 14:07,GSCOTT,09/05/2023,2023,2,CCLOHERTYJONES,09/05/2023 09:55,N,N
************8505,35,ROBERT L GREAVES,S,Tracey Waistle,10168,C,10168,15/05/2023,2023,2,09/06/2023,2023,3,2023,3,18.47,3.08,15.39,B,20%,2023,3,Y,232555575,Screwfix,Fire exit sign and extention lead Invoice No: A12124896647,Other,3711,40100,,,People and Places,People and Places,Y,12/06/2023 11:43,JCARTRIDGE,7108,7794,N,,,,Y,12/06/2023 11:57,GSCOTT,09/06/2023,2023,3,TWAISTLE,09/06/2023 10:50,N,N
************8505,35,ROBERT L GREAVES,S,Tracey Waistle,10169,C,10169,23/05/2023,2023,2,09/06/2023,2023,3,2023,3,359.40,59.90,299.50,B,20%,2023,3,Y,713607454,HUWS GRAY LTD,Timber Items for 16879 Invoice no: S8854069,Other,6953,42002,,,People and Places,People and Places,Y,12/06/2023 11:43,JCARTRIDGE,7108,7795,N,,,,Y,12/06/2023 11:57,GSCOTT,09/06/2023,2023,3,TWAISTLE,09/06/2023 10:55,N,N
************8505,35,ROBERT L GREAVES,S,Tracey Waistle,10183,C,10183,31/05/2023,2023,2,13/06/2023,2023,3,2023,3,70.54,11.76,58.78,B,20%,2023,3,Y,394121263,chadwicks,1 union facility Indicator bolt,Other,3711,40102,,,People and Places,People and Places,Y,29/06/2023 14:48,JCARTRIDGE,7132,7809,N,,,,Y,04/07/2023 10:27,GSCOTT,13/06/2023,2023,3,CCLOHERTYJONES,13/06/2023 14:12,N,N
************8505,35,ROBERT L GREAVES,S,Tracey Waistle,10170,C,10170,31/05/2023,2023,2,09/06/2023,2023,3,2023,3,896.00,149.33,746.67,B,20%,2023,3,Y,232555575,Tradepoint - B and Q,Postcrete Order no: 1032452185,Other,6902,,,,People and Places,People and Places,Y,29/06/2023 14:48,JCARTRIDGE,7133,7796,N,,,,Y,04/07/2023 10:27,GSCOTT,09/06/2023,2023,3,TWAISTLE,09/06/2023 11:02,N,N
************8406,36,Mrs Carol Southern,U,Carol Southern,10199,C,10199,12/05/2023,2023,2,16/06/2023,2023,3,2023,3,77.13,0.00,77.13,C,0%,2023,3,,,Trainline,Train travel to attend an all party select committee event about Obesity,Travel and Accommodation,6106,33000,,,People and Places,People and Places,Y,16/06/2023 16:04,CCROOK,7116,7822,N,,,,Y,22/06/2023 08:09,MBROADHURST,16/06/2023,2023,3,CSOUTHERN,16/06/2023 15:59,N,N
************8406,36,Mrs Carol Southern,U,Carol Southern,10201,C,10201,20/05/2023,2023,2,16/06/2023,2023,3,2023,3,168.50,0.00,168.50,C,0%,2023,3,,,Premier Inn,Night in a hotel so I could attend an all parliamentary event in the morning at the Houses of Parliament,Travel and Accommodation,6106,33000,,,People and Places,People and Places,Y,16/06/2023 16:04,CCROOK,7116,7823,N,,,,Y,22/06/2023 08:09,MBROADHURST,16/06/2023,2023,3,CSOUTHERN,16/06/2023 16:02,N,N
************4003,37,Veronica Wilson,U,Veronica Wilson,10163,C,10163,08/06/2023,2023,3,08/06/2023,2023,3,2023,3,282.00,47.00,235.00,B,20%,2023,3,Y,584940013,RICS,RICS - Regulated Firm Sponsorship 2023/24,Other,6601,45300,,,Resources,Resources,Y,29/06/2023 14:48,VWILSON,7134,7789,N,,,,Y,29/06/2023 16:48,CJAMES,08/06/2023,2023,3,VWILSON,08/06/2023 16:56,N,N
************9143,38,Julie Cartridge,U,Julie Cartridge,10060,C,10060,04/04/2023,2023,1,04/04/2023,2023,1,2023,1,141.73,0.00,141.73,C,0%,2023,1,,,The Trainline,Train Ticket for Lee Rossall on 27th April 2023 - Poulton to London Euston Return,Other,6400,33000,,,Resources,Resources,Y,02/05/2023 14:52,JCARTRIDGE,7066,7703,N,,,,Y,11/05/2023 12:33,VWILSON,04/04/2023,2023,1,JCARTRIDGE,04/04/2023 09:08,N,N
************9143,38,Julie Cartridge,U,Julie Cartridge,10066,C,10066,05/04/2023,2023,1,11/04/2023,2023,1,2023,1,937.92,156.32,781.60,B,20%,2023,1,,,Premier Inn Ulverston,Accommodation for Chris Atherton plus 1 other for Cell Eleven Regional Monitoring Strategy Premier Inn Ulverston Check in 10/07/2023 to 14/07/2023,Travel and Accommodation,8223,4020,,,Resources,Resources,Y,02/05/2023 14:52,JCARTRIDGE,7064,7709,N,,,,Y,11/05/2023 12:34,VWILSON,11/04/2023,2023,1,JCARTRIDGE,11/04/2023 09:42,N,N
************9143,38,Julie Cartridge,U,Julie Cartridge,10065,C,10065,05/04/2023,2023,1,11/04/2023,2023,1,2023,1,"1,041.90",0.00,"1,041.90",D,0%,2023,1,,,Holiday Inn Lancaster,Accommodation for Chris Atherton and 1 other Check in 12/06/23 check out 15/06/23 Booking Confirmation : 68056244: 68056244,Travel and Accommodation,8223,4020,,,Resources,Resources,Y,03/07/2023 16:12,JCARTRIDGE,7151,7708,N,,,,Y,03/07/2023 17:28,VWILSON,11/04/2023,2023,1,JCARTRIDGE,11/04/2023 09:32,N,N
************9143,38,Julie Cartridge,U,Julie Cartridge,10067,C,10067,05/04/2023,2023,1,11/04/2023,2023,1,2023,1,"1,401.92",233.65,"1,168.27",B,20%,2023,1,,,Premier Inn Cockermouth,Accommodation for Chris Atherton plus 1 other for Cell Eleven Regional Monitoring Strategy at Premier Inn Cockermouth Check in 21/08/23 to 25/08/23,Travel and Accommodation,8223,4020,,,Resources,Resources,Y,02/05/2023 14:52,JCARTRIDGE,7065,7710,N,,,,Y,11/05/2023 12:34,VWILSON,11/04/2023,2023,1,JCARTRIDGE,11/04/2023 09:46,N,N
************9143,38,Julie Cartridge,U,Julie Cartridge,10068,C,10068,11/04/2023,2023,1,11/04/2023,2023,1,2023,1,960.00,160.00,800.00,B,20%,2023,1,,,Gosforth Hotel,Accommodation for Chris Atherton plus 1 other for Cell Eleven Regional Monitoring Strategy at Gosforth Hotel Check in 20/11/23 to 24/11/23,Travel and Accommodation,8223,4020,,,Resources,Resources,Y,02/05/2023 14:52,JCARTRIDGE,7067,7711,N,,,,Y,11/05/2023 12:34,VWILSON,11/04/2023,2023,1,JCARTRIDGE,11/04/2023 09:53,N,N
************9143,38,Julie Cartridge,U,Julie Cartridge,10152,C,10152,19/04/2023,2023,1,31/05/2023,2023,2,2023,2,-260.00,0.00,-260.00,D,0%,2023,2,,,Civil Aviation Authority,Refund of drone licence - RE: 20230414 Refund request rec 11013,Other,8223,4020,,,Resources,Resources,Y,31/05/2023 14:00,JCARTRIDGE,7096,7776,N,,,,Y,08/06/2023 14:43,VWILSON,31/05/2023,2023,2,JCARTRIDGE,31/05/2023 13:59,N,N
************9143,38,Julie Cartridge,U,Julie Cartridge,10133,C,10133,17/05/2023,2023,2,17/05/2023,2023,2,2023,2,71.22,0.00,71.22,C,0%,2023,2,,,Trainline,Train tickets from Poulton to Cardiff Central return for Wayne Clark . 13/06/23 - 16/06/23 for training course,Travel and Accommodation,6300,33000,,,Resources,Resources,Y,30/05/2023 16:26,JCARTRIDGE,7091,7758,N,,,,Y,31/05/2023 08:20,VWILSON,17/05/2023,2023,2,JCARTRIDGE,17/05/2023 15:56,N,N
************9143,38,Julie Cartridge,U,Julie Cartridge,10134,C,10134,17/05/2023,2023,2,17/05/2023,2023,2,2023,2,309.60,0.00,309.60,D,0%,2023,2,,,Radisson Blu Hotel,Accommodation for Wayne Clarke at Radisson Blu hotel Cardiff From 13/06/23 to 16/06/23 inc breakfast,Travel and Accommodation,6300,33000,,,Resources,Resources,Y,03/07/2023 16:12,JCARTRIDGE,7151,7759,N,,,,Y,03/07/2023 17:28,VWILSON,17/05/2023,2023,2,JCARTRIDGE,17/05/2023 16:00,N,N
************9143,38,Julie Cartridge,U,Julie Cartridge,10185,C,10185,23/05/2023,2023,2,14/06/2023,2023,3,2023,3,226.00,0.00,226.00,D,0%,2023,3,,,HMCTS,": Application 23 May 2023 at 2pm at Preston Magistrates Court : Land to the West of Hall Gate Lane, Stalmine - Unathorised Encampment - Court Order Application - SUMMONSES AND COMPLAINTS",Other,3330,27018,,,Resources,Resources,Y,14/06/2023 10:25,JCARTRIDGE,7110,7811,N,,,,Y,15/06/2023 12:27,VWILSON,14/06/2023,2023,3,JCARTRIDGE,14/06/2023 10:25,N,N
************9143,38,Julie Cartridge,U,Julie Cartridge,10141,C,10141,24/05/2023,2023,2,24/05/2023,2023,2,2023,2,159.00,0.00,159.00,D,0%,2023,2,,,TV Licensing,TV LIcence for the period up to 31st May 2024,Other,6412,46202,,,Resources,Resources,Y,30/05/2023 16:26,JCARTRIDGE,7092,7765,N,,,,Y,31/05/2023 08:20,VWILSON,24/05/2023,2023,2,JCARTRIDGE,24/05/2023 13:05,N,N
************9143,38,Julie Cartridge,U,Julie Cartridge,10182,C,10182,12/06/2023,2023,3,12/06/2023,2023,3,2023,3,432.00,72.00,360.00,B,20%,2023,3,,,Eventbrite,LGIU Chairing Skills Virtual Training for Cllr P. Cartridge Cllr D. Atkins Cllr P. Ellison 12th July 2023 9.30-12.30,Other,2000,17012,,,Resources,Resources,Y,29/06/2023 14:48,JCARTRIDGE,7137,7808,N,,,,Y,03/07/2023 17:29,VWILSON,12/06/2023,2023,3,JCARTRIDGE,12/06/2023 11:47,N,N
************9143,38,Julie Cartridge,U,Julie Cartridge,10186,C,10186,14/06/2023,2023,3,14/06/2023,2023,3,2023,3,445.00,74.17,370.83,B,20%,2023,3,,,ManoMano.uk,Gold Lanterns of various sizes for Members Lounge 1 size 15x15x40cm 1 size 23x24x71cm 13 size 18x19x53cm,Other,6412,40300,,,Resources,Resources,Y,29/06/2023 14:48,JCARTRIDGE,7136,7812,N,,,,Y,03/07/2023 17:29,VWILSON,14/06/2023,2023,3,JCARTRIDGE,14/06/2023 15:20,N,N
************9143,38,Julie Cartridge,U,Julie Cartridge,10208,C,10208,21/06/2023,2023,3,21/06/2023,2023,3,2023,3,144.00,24.00,120.00,B,20%,2023,3,,,Eventbrite,Virtual Training session for Cllr Baxter on 12 July 2023,Other,2000,17012,,,Resources,Resources,Y,29/06/2023 14:48,JCARTRIDGE,7139,7832,N,,,,Y,03/07/2023 17:29,VWILSON,21/06/2023,2023,3,JCARTRIDGE,21/06/2023 15:33,N,N
************9143,38,Julie Cartridge,U,Julie Cartridge,10209,C,10209,21/06/2023,2023,3,21/06/2023,2023,3,2023,3,189.00,31.50,157.50,B,20%,2023,3,,,www.chateau.co.uk,The Florence Over the Mantle in Antique Gold,Other,6412,40300,,,Resources,Resources,Y,29/06/2023 14:48,JCARTRIDGE,7138,7833,N,,,,Y,03/07/2023 17:29,VWILSON,21/06/2023,2023,3,JCARTRIDGE,21/06/2023 16:09,N,N
************9143,38,Julie Cartridge,U,Julie Cartridge,10223,C,10223,27/06/2023,2023,3,28/06/2023,2023,3,2023,3,532.02,0.00,532.02,E,0%,2023,3,,,Coverdrone Ltd,Drone Public Liability Insurance Payment 2023-2024,Other,8223,4020,,,Resources,Resources,Y,29/06/2023 14:48,JCARTRIDGE,7135,7847,N,,,,Y,03/07/2023 17:29,VWILSON,28/06/2023,2023,3,JCARTRIDGE,28/06/2023 10:18,N,N
************8657,39,Mrs C Crook,U,Carly Crook,10129,C,10129,01/04/2023,2023,1,10/05/2023,2023,2,2023,2,4.80,0.80,4.00,B,20%,2023,2,,,Ticket taylor,Ticket tailor fess - March 2023,Other,3131,46104,,,Resources,Resources,Y,10/05/2023 16:23,CCROOK,7082,7757,N,,,,Y,11/05/2023 12:33,VWILSON,10/05/2023,2023,2,CCROOK,10/05/2023 16:14,N,N
************8657,39,Mrs C Crook,U,Carly Crook,10132,C,10132,17/04/2023,2023,1,10/05/2023,2023,2,2023,2,10.49,0.00,10.49,E,0%,2023,2,,,Trainline,Tickets for Mark Fenton,Travel and Accommodation,6953,33000,,,Resources,Resources,Y,10/05/2023 16:23,CCROOK,7082,7757,N,,,,Y,11/05/2023 12:33,VWILSON,10/05/2023,2023,2,CCROOK,10/05/2023 16:20,N,N
************8657,39,Mrs C Crook,U,Carly Crook,10131,C,10131,18/04/2023,2023,1,10/05/2023,2023,2,2023,2,138.49,0.00,138.49,D,0%,2023,2,,,Morrisons,Morrisons order for annual council meeting,Other,2003,46505,,,Resources,Resources,Y,10/05/2023 16:23,CCROOK,7082,7757,N,,,,Y,11/05/2023 12:33,VWILSON,10/05/2023,2023,2,CCROOK,10/05/2023 16:18,N,N
************8657,39,Mrs C Crook,U,Carly Crook,10126,C,10126,19/04/2023,2023,1,10/05/2023,2023,2,2023,2,221.00,36.83,184.17,B,20%,2023,2,Y,,Premier Inn,Hotel for Cllr Phil Orme and Sue Catterall,Travel and Accommodation,2003,44401,,,Resources,Resources,Y,10/05/2023 16:23,CCROOK,7082,7757,N,,,,Y,11/05/2023 12:33,VWILSON,10/05/2023,2023,2,CCROOK,10/05/2023 16:09,N,N
************8657,39,Mrs C Crook,U,Carly Crook,10125,C,10125,19/04/2023,2023,1,10/05/2023,2023,2,2023,2,228.45,0.00,228.45,E,0%,2023,2,,,Trainline,Train bookings for Cllr Phil Orme and Cllr Sue Catterall,Travel and Accommodation,2003,44401,,,Resources,Resources,Y,10/05/2023 16:23,CCROOK,7082,7757,N,,,,Y,11/05/2023 12:33,VWILSON,10/05/2023,2023,2,CCROOK,10/05/2023 16:08,N,N
************8657,39,Mrs C Crook,U,Carly Crook,10130,C,10130,20/04/2023,2023,1,10/05/2023,2023,2,2023,2,69.60,11.60,58.00,B,20%,2023,2,,,Ticket taylor,Ticket tailor fees April 2023,Other,3131,46104,,,Resources,Resources,Y,10/05/2023 16:23,CCROOK,7082,7757,N,,,,Y,11/05/2023 12:33,VWILSON,10/05/2023,2023,2,CCROOK,10/05/2023 16:15,N,N
************8657,39,Mrs C Crook,U,Carly Crook,10127,C,10127,24/04/2023,2023,1,10/05/2023,2023,2,2023,2,69.08,0.00,69.08,E,0%,2023,2,,,Trainline,Train tickets for Chloe Cox,Travel and Accommodation,6905,33000,,,Resources,Resources,Y,10/05/2023 16:23,CCROOK,7082,7757,N,,,,Y,11/05/2023 12:33,VWILSON,10/05/2023,2023,2,CCROOK,10/05/2023 16:11,N,N
************8657,39,Mrs C Crook,U,Carly Crook,10196,C,10196,27/04/2023,2023,1,16/06/2023,2023,3,2023,3,42.35,7.06,35.29,B,20%,2023,3,Y,805015277,Vistaprint,Personalised canvas print,Other,3150,40100,,,Resources,Resources,Y,16/06/2023 16:00,CCROOK,7114,7821,N,,,,Y,19/06/2023 09:27,VWILSON,16/06/2023,2023,3,CCROOK,16/06/2023 15:45,N,N
************8657,39,Mrs C Crook,U,Carly Crook,10197,C,10197,24/05/2023,2023,2,16/06/2023,2023,3,2023,3,104.74,0.00,104.74,E,0%,2023,3,,,TRAINLINE,train tickets for Carl Green,Travel and Accommodation,6902,33000,,,Resources,Resources,Y,16/06/2023 16:00,CCROOK,7114,7821,N,,,,Y,19/06/2023 09:27,VWILSON,16/06/2023,2023,3,CCROOK,16/06/2023 15:49,N,N
************8657,39,Mrs C Crook,U,Carly Crook,10198,C,10198,24/05/2023,2023,2,16/06/2023,2023,3,2023,3,170.00,28.33,141.67,B,20%,2023,3,,,booking.com,hotel booking for Carl Green,Travel and Accommodation,6902,33000,,,Resources,Resources,Y,16/06/2023 16:00,CCROOK,7114,7821,N,,,,Y,19/06/2023 09:27,VWILSON,16/06/2023,2023,3,CCROOK,16/06/2023 15:55,N,N
************8657,39,Mrs C Crook,U,Carly Crook,10200,C,10200,25/05/2023,2023,2,16/06/2023,2023,3,2023,3,416.09,69.35,346.74,B,20%,2023,3,Y,805367726,TRAVELODGE,Hotel booking on behalf of the homlessness team.,Other,5140,46814,,,Resources,Resources,Y,16/06/2023 16:00,CCROOK,7114,7821,N,,,,Y,19/06/2023 09:27,VWILSON,16/06/2023,2023,3,CCROOK,16/06/2023 16:00,N,N
************8657,39,Mrs C Crook,U,Carly Crook,10202,C,10202,15/06/2023,2023,3,15/06/2023,2023,3,2023,3,20.27,0.00,20.27,E,0%,2023,3,,,TRAINLINE,Trainline - Lee Rossall,Travel and Accommodation,6400,33000,,,Resources,Resources,Y,29/06/2023 14:48,JCARTRIDGE,7140,7824,N,,,,Y,03/07/2023 17:29,VWILSON,15/06/2023,2023,3,CCROOK,16/06/2023 16:11,N,N
************9358,40,Mrs Janet E Heald,U,Janet Heald,10140,C,10140,21/04/2023,2023,1,24/05/2023,2023,2,2023,2,4.00,0.00,4.00,D,0%,2023,2,,,tesco,flowers MP weddings,Other,3040,40100,,,People and Places,People and Places,Y,24/05/2023 10:11,JHEALD,7085,7764,N,,,,Y,25/05/2023 14:10,JAROBINSON,24/05/2023,2023,2,JHEALD,24/05/2023 10:10,N,N
************9358,40,Mrs Janet E Heald,U,Janet Heald,10139,C,10139,21/04/2023,2023,1,24/05/2023,2023,2,2023,2,19.40,0.00,19.40,E,0%,2023,2,,,Asda,Flowers for MP weddings,Other,3040,40100,,,People and Places,People and Places,Y,24/05/2023 10:11,JHEALD,7085,7764,N,,,,Y,25/05/2023 14:10,JAROBINSON,24/05/2023,2023,2,JHEALD,24/05/2023 10:09,N,N
************9358,40,Mrs Janet E Heald,U,Janet Heald,10277,C,10277,04/06/2023,2023,3,17/07/2023,2023,4,2023,4,10.90,0.00,10.90,D,0%,2023,4,,,asda,Allied Dance event MH 4/6/23 juice and fruit,Other,3040,41100,,,People and Places,People and Places,Y,17/07/2023 11:52,JHEALD,7180,7902,N,,,,P,17/07/2023 11:53,JAROBINSON,,0,0,JHEALD,17/07/2023 11:49,N,N
************9358,40,Mrs Janet E Heald,U,Janet Heald,10278,C,10278,09/06/2023,2023,3,17/07/2023,2023,4,2023,4,15.70,0.00,15.70,D,0%,2023,4,,,asda,wedding MP flowers 9/6/23,Other,3040,40100,,,People and Places,People and Places,Y,17/07/2023 11:52,JHEALD,7180,7902,N,,,,P,17/07/2023 11:53,JAROBINSON,,0,0,JHEALD,17/07/2023 11:50,N,N
************9358,40,Mrs Janet E Heald,U,Janet Heald,10288,C,10288,30/06/2023,2023,3,17/07/2023,2023,4,2023,4,16.70,0.00,16.70,D,0%,2023,4,,,asda,asda flowers MP wedding 1/7/23,Other,3040,40100,,,People and Places,People and Places,N,,,0,7905,N,,,,N,,,,0,0,JHEALD,17/07/2023 12:16,N,N
************1764,42,Jordan Cartmell,U,Jordan Cartmell,10086,C,10086,01/04/2023,2023,1,03/05/2023,2023,2,2023,2,17.70,0.00,17.70,C,0%,2023,2,,,Google Inc,Google Search console billing for March 2023.,Other,6404,43604,43710,,Resources,Resources,Y,03/05/2023 10:33,JCARTMELL,7070,7720,N,,,,Y,03/05/2023 10:55,LBROPHY,03/05/2023,2023,2,JCARTMELL,03/05/2023 10:33,N,N
************1764,42,Jordan Cartmell,U,Jordan Cartmell,10247,C,10247,01/05/2023,2023,2,13/07/2023,2023,4,2023,4,12.19,2.03,10.16,B,20%,2023,4,,,Google Inc,Google search console API usage for April 2023.,Other,6404,43500,43500,,Resources,Resources,Y,13/07/2023 11:54,JCARTMELL,7161,7873,N,,,,Y,13/07/2023 12:12,LBROPHY,13/07/2023,2023,4,JCARTMELL,13/07/2023 11:53,N,N
************1764,42,Jordan Cartmell,U,Jordan Cartmell,10255,C,10255,04/05/2023,2023,2,13/07/2023,2023,4,2023,4,94.15,15.69,78.46,B,20%,2023,4,,,Kenable,"Server blanking plates, bolts, washers and cable management.",Other,6404,43500,43500,,Resources,Resources,Y,13/07/2023 13:25,JCARTMELL,7166,7874,N,,,,Y,14/07/2023 13:43,LBROPHY,13/07/2023,2023,4,JCARTMELL,13/07/2023 13:24,N,N
************1764,42,Jordan Cartmell,U,Jordan Cartmell,10267,C,10267,15/05/2023,2023,2,13/07/2023,2023,4,2023,4,403.78,67.30,336.48,B,20%,2023,4,,,Broadbandbuyer.com,56 CAT6A 10m cables for server rewire.,Other,6404,43500,43500,,Resources,Resources,Y,13/07/2023 14:46,JCARTMELL,7171,7892,N,,,,Y,14/07/2023 13:43,LBROPHY,13/07/2023,2023,4,JCARTMELL,13/07/2023 14:46,N,N
************1764,42,Jordan Cartmell,U,Jordan Cartmell,10272,C,10272,30/05/2023,2023,2,14/07/2023,2023,4,2023,4,395.00,65.83,329.17,B,20%,2023,4,,,CDS Printer Solutions LTD,1 x Refurbished Fujitsu Fi-7260 High Speed A4 Colour Sheet Fed & Flatbed Duplex Scanner - USB 3.0 - PA03670-B551.,Other,6404,43500,43500,,Resources,Resources,Y,14/07/2023 12:30,JCARTMELL,7177,7898,N,,,,Y,14/07/2023 13:43,LBROPHY,14/07/2023,2023,4,JCARTMELL,14/07/2023 12:29,N,N
************1764,42,Jordan Cartmell,U,Jordan Cartmell,10245,C,10245,01/06/2023,2023,3,13/07/2023,2023,4,2023,4,11.53,1.92,9.61,B,20%,2023,4,,,Google Inc,Google Search console API monthly charges for May usage,Other,6404,43500,43500,,Resources,Resources,Y,13/07/2023 10:47,JCARTMELL,7159,7870,N,,,,Y,13/07/2023 10:51,LBROPHY,13/07/2023,2023,4,JCARTMELL,13/07/2023 10:44,N,N
************1764,42,Jordan Cartmell,U,Jordan Cartmell,10246,C,10246,02/06/2023,2023,3,13/07/2023,2023,4,2023,4,963.98,160.66,803.32,B,20%,2023,4,,,Jackery UK Ltd,2 x Jackery Explorer 500 Portable Power Station.,Other,6404,43500,43500,,Resources,Resources,Y,13/07/2023 10:51,JCARTMELL,7160,7871,N,,,,Y,13/07/2023 11:33,LBROPHY,13/07/2023,2023,4,JCARTMELL,13/07/2023 10:50,N,N
************1764,42,Jordan Cartmell,U,Jordan Cartmell,10274,C,10274,07/06/2023,2023,3,14/07/2023,2023,4,2023,4,163.20,27.20,136.00,B,20%,2023,4,,,BiGDUG Ltd,Karbon K3 Rectangular Deluxe Cantilever Compact Computer Desk 730h x 1000w x 600d mm | Oak | Graphite Legs. Product Code: OFRD310784GO.,Other,6404,40300,,,Resources,Resources,Y,17/07/2023 08:36,JCARTRIDGE,7178,7900,N,,,,Y,17/07/2023 10:09,LBROPHY,14/07/2023,2023,4,JCARTMELL,14/07/2023 12:45,N,N
************1764,42,Jordan Cartmell,U,Jordan Cartmell,10257,C,10257,09/06/2023,2023,3,13/07/2023,2023,4,2023,4,128.65,21.44,107.21,B,20%,2023,4,,,Kenable,2 x HDMI v2.1 Ultra High Speed HDR 8K 30Hz 4K 60Hz 48Gbps eARC Cable 10m Silver. 2 x HDMI v2.1 Ultra High Speed HDR 8K 30Hz 4K 60Hz 48Gbps eARC Cable 5m Silver.,Other,6404,43500,43500,,Resources,Resources,Y,13/07/2023 13:32,JCARTMELL,7167,7883,N,,,,Y,14/07/2023 13:43,LBROPHY,13/07/2023,2023,4,JCARTMELL,13/07/2023 13:31,N,N
************1764,42,Jordan Cartmell,U,Jordan Cartmell,10260,C,10260,16/06/2023,2023,3,13/07/2023,2023,4,2023,4,16.28,2.71,13.57,B,20%,2023,4,,,BT,SSD Int 240GB Green PCIE G3 M.2.,Other,6404,43500,43500,,Resources,Resources,Y,13/07/2023 14:11,JCARTMELL,7170,7886,N,,,,Y,14/07/2023 13:43,LBROPHY,13/07/2023,2023,4,JCARTMELL,13/07/2023 14:11,N,N
************1764,42,Jordan Cartmell,U,Jordan Cartmell,10259,C,10259,16/06/2023,2023,3,13/07/2023,2023,4,2023,4,46.98,7.83,39.15,B,20%,2023,4,,,Scan Computers International LTD,1 x DEEPCOOL MATTREXX 55 Mesh computer case and delivery.,Other,6404,43500,43500,,Resources,Resources,Y,13/07/2023 13:39,JCARTMELL,7169,7885,N,,,,Y,14/07/2023 13:43,LBROPHY,13/07/2023,2023,4,JCARTMELL,13/07/2023 13:39,N,N
************1764,42,Jordan Cartmell,U,Jordan Cartmell,10258,C,10258,16/06/2023,2023,3,13/07/2023,2023,4,2023,4,97.09,16.18,80.91,B,20%,2023,4,,,Kenable,12 x USB 3.1 Type C to DisplayPort Lead UHD 4K 60Hz Adapter Cable Black 2m.,Other,6404,43500,43500,,Resources,Resources,Y,13/07/2023 13:35,JCARTMELL,7168,7884,N,,,,Y,14/07/2023 13:43,LBROPHY,13/07/2023,2023,4,JCARTMELL,13/07/2023 13:34,N,N
************5315,44,Mrs Tracy J Waistle,U,Tracey Waistle,10207,C,10207,06/04/2023,2023,1,21/06/2023,2023,3,2023,3,150.00,0.00,150.00,C,0%,2023,3,,833012277,Ofcom,Ofcom Radio Licence Fees Invoice no: 78599631,Other,3711,43200,,,People and Places,People and Places,Y,21/06/2023 13:51,TWAISTLE,7118,7831,N,,,,Y,22/06/2023 08:41,GSCOTT,21/06/2023,2023,3,TWAISTLE,21/06/2023 13:50,N,N
************5315,44,Mrs Tracy J Waistle,U,Tracey Waistle,10085,C,10085,19/04/2023,2023,1,19/04/2023,2023,1,2023,1,26.95,4.49,22.46,B,20%,2023,1,Y,GB932536034,Avenue 85,Regatta waterproof trousers Order no: #105921,Other,6953,41600,,,People and Places,People and Places,Y,02/05/2023 14:52,JCARTRIDGE,7068,7718,N,,,,Y,03/05/2023 09:15,GSCOTT,19/04/2023,2023,1,TWAISTLE,19/04/2023 15:24,N,N
************5315,44,Mrs Tracy J Waistle,U,Tracey Waistle,10099,C,10099,21/04/2023,2023,1,03/05/2023,2023,2,2023,2,13.30,2.22,11.08,B,20%,2023,2,,,Asda,Water Elections Receipt,Other,2201,40100,,,People and Places,People and Places,Y,09/05/2023 11:58,JCARTRIDGE,7079,7733,N,,,,Y,16/05/2023 10:31,GSCOTT,03/05/2023,2023,2,TWAISTLE,03/05/2023 16:40,N,N
************5315,44,Mrs Tracy J Waistle,U,Tracey Waistle,10104,C,10104,21/04/2023,2023,1,03/05/2023,2023,2,2023,2,44.58,7.43,37.15,B,20%,2023,2,Y,GB169680322,cpc,Lanterns Elections Invoice no: 3858075,Other,2201,40100,,,People and Places,People and Places,Y,09/05/2023 11:58,JCARTRIDGE,7079,7738,N,,,,Y,16/05/2023 10:31,GSCOTT,03/05/2023,2023,2,TWAISTLE,03/05/2023 17:07,N,N
************5315,44,Mrs Tracy J Waistle,U,Tracey Waistle,10210,C,10210,21/04/2023,2023,1,22/06/2023,2023,3,2023,3,100.00,0.00,100.00,C,0%,2023,3,,,DOGLAW LTD,Webinar training Invoice no: TCW230043,Other,6905,17010,,,People and Places,People and Places,Y,22/06/2023 11:38,TWAISTLE,7119,7834,N,,,,Y,04/07/2023 10:27,GSCOTT,22/06/2023,2023,3,TWAISTLE,22/06/2023 11:36,N,N
************5315,44,Mrs Tracy J Waistle,U,Tracey Waistle,10105,C,10105,21/04/2023,2023,1,03/05/2023,2023,2,2023,2,133.96,22.33,111.63,B,20%,2023,2,Y,408556737,Toolstation,Heaters Elections Receipt Order no: XNW305187479,Other,2201,40100,,,People and Places,People and Places,Y,09/05/2023 11:58,JCARTRIDGE,7079,7739,N,,,,Y,16/05/2023 10:31,GSCOTT,03/05/2023,2023,2,TWAISTLE,03/05/2023 17:09,N,N
************5315,44,Mrs Tracy J Waistle,U,Tracey Waistle,10102,C,10102,25/04/2023,2023,1,03/05/2023,2023,2,2023,2,117.95,19.66,98.29,B,20%,2023,2,Y,GB274797601,britishladders.co.uk,ladder Order no: 341308982,Other,6953,42002,,,People and Places,People and Places,Y,09/05/2023 11:58,JCARTRIDGE,7079,7736,N,,,,Y,16/05/2023 10:31,GSCOTT,03/05/2023,2023,2,TWAISTLE,03/05/2023 17:00,N,N
************5315,44,Mrs Tracy J Waistle,U,Tracey Waistle,10100,C,10100,26/04/2023,2023,1,03/05/2023,2023,2,2023,2,32.45,5.41,27.04,B,20%,2023,2,Y,232555575,Screwfix,Materials Invoice no: A11849435157,Other,6953,42002,,,People and Places,People and Places,Y,09/05/2023 11:58,JCARTRIDGE,7079,7734,N,,,,Y,16/05/2023 10:31,GSCOTT,03/05/2023,2023,2,TWAISTLE,03/05/2023 16:44,N,N
************5315,44,Mrs Tracy J Waistle,U,Tracey Waistle,10101,C,10101,27/04/2023,2023,1,03/05/2023,2023,2,2023,2,208.94,34.82,174.12,B,20%,2023,2,Y,946544201,Net World Sports,Drag Mat Order no: 201002215,Other,6953,42002,,,People and Places,People and Places,Y,09/05/2023 11:58,JCARTRIDGE,7079,7735,N,,,,Y,16/05/2023 10:31,GSCOTT,03/05/2023,2023,2,TWAISTLE,03/05/2023 16:57,N,N
************5315,44,Mrs Tracy J Waistle,U,Tracey Waistle,10098,C,10098,28/04/2023,2023,1,03/05/2023,2023,2,2023,2,3.00,0.50,2.50,B,20%,2023,2,,149520855,J W Fish LTD,Cabin key Elections Receipt,Other,2201,40100,,,People and Places,People and Places,Y,30/05/2023 16:26,JCARTRIDGE,7093,7732,N,,,,Y,12/06/2023 11:57,GSCOTT,03/05/2023,2023,2,TWAISTLE,03/05/2023 16:34,N,N
************5315,44,Mrs Tracy J Waistle,U,Tracey Waistle,10177,C,10177,04/05/2023,2023,2,09/06/2023,2023,3,2023,3,99.90,0.00,99.90,C,0%,2023,3,,GB107116160,Charnwood Safety Footwear &amp; Work,Safety boots Invoice no: 100057180,Other,3420,41600,,,People and Places,People and Places,Y,12/06/2023 11:42,JCARTRIDGE,7107,7803,N,,,,Y,12/06/2023 11:57,GSCOTT,09/06/2023,2023,3,TWAISTLE,09/06/2023 12:30,N,N
************5315,44,Mrs Tracy J Waistle,U,Tracey Waistle,10180,C,10180,11/05/2023,2023,2,09/06/2023,2023,3,2023,3,49.99,0.00,49.99,C,0%,2023,3,,733097336,The Plant Place,Tree Poulton Cemetery Invoice no: 037502,Other,3222,28003,,,People and Places,People and Places,Y,12/06/2023 11:42,JCARTRIDGE,7107,7806,N,,,,Y,12/06/2023 11:57,GSCOTT,09/06/2023,2023,3,TWAISTLE,09/06/2023 13:33,N,N
************5315,44,Mrs Tracy J Waistle,U,Tracey Waistle,10206,C,10206,12/05/2023,2023,2,21/06/2023,2023,3,2023,3,0.01,0.00,0.01,B,20%,2023,3,,,Workwear Express,Balancing transaction Ref 10178 Workwear Express,Other,6953,41600,,,People and Places,People and Places,Y,21/06/2023 13:17,TWAISTLE,7117,7830,N,,,,Y,22/06/2023 08:41,GSCOTT,21/06/2023,2023,3,TWAISTLE,21/06/2023 13:03,N,N
************5315,44,Mrs Tracy J Waistle,U,Tracey Waistle,10178,C,10178,12/05/2023,2023,2,09/06/2023,2023,3,2023,3,97.95,8.90,89.05,B,20%,2023,3,Y,GB722112783,Workwear Express Ltd,Safety Boots Invoice no: INV1563326,Other,6953,41600,,,People and Places,People and Places,Y,21/06/2023 13:17,TWAISTLE,7117,7804,N,,,,Y,22/06/2023 08:41,GSCOTT,09/06/2023,2023,3,TWAISTLE,09/06/2023 12:39,N,N
************5315,44,Mrs Tracy J Waistle,U,Tracey Waistle,10173,C,10173,31/05/2023,2023,2,09/06/2023,2023,3,2023,3,6.49,1.08,5.41,B,20%,2023,3,Y,232555575,Screwfix,Polythene sheet Order no: A12359641368,Other,6953,42002,,,People and Places,People and Places,Y,29/06/2023 14:48,JCARTRIDGE,7145,7799,N,,,,Y,04/07/2023 10:27,GSCOTT,09/06/2023,2023,3,TWAISTLE,09/06/2023 11:59,N,N
************5315,44,Mrs Tracy J Waistle,U,Tracey Waistle,10174,C,10174,31/05/2023,2023,2,09/06/2023,2023,3,2023,3,49.99,0.00,49.99,C,0%,2023,3,,232555575,Screwfix,Dewalt Safety Boots Invoice no: A12359527706,Other,6953,41600,,,People and Places,People and Places,Y,29/06/2023 14:48,JCARTRIDGE,7144,7800,N,,,,Y,04/07/2023 10:27,GSCOTT,09/06/2023,2023,3,TWAISTLE,09/06/2023 12:06,N,N
************5315,44,Mrs Tracy J Waistle,U,Tracey Waistle,10172,C,10172,01/06/2023,2023,3,09/06/2023,2023,3,2023,3,52.32,8.72,43.60,B,20%,2023,3,Y,201923349,N P Structures Ltd,Repair tape Invoice no: 58998,Other,6953,42002,,,People and Places,People and Places,Y,03/07/2023 16:11,JCARTRIDGE,7150,7798,N,,,,Y,04/07/2023 10:27,GSCOTT,09/06/2023,2023,3,TWAISTLE,09/06/2023 11:54,N,N
************5315,44,Mrs Tracy J Waistle,U,Tracey Waistle,10179,C,10179,05/06/2023,2023,3,09/06/2023,2023,3,2023,3,61.19,10.20,50.99,B,20%,2023,3,Y,211502667,Defib Store Ltd,Cardiac Science Powerheart G3 Pad - Defib Invoice no: 28579,Other,3711,40102,,,People and Places,People and Places,Y,03/07/2023 16:11,JCARTRIDGE,7150,7805,N,,,,Y,04/07/2023 10:27,GSCOTT,09/06/2023,2023,3,TWAISTLE,09/06/2023 13:07,N,N
************5315,44,Mrs Tracy J Waistle,U,Tracey Waistle,10171,C,10171,08/06/2023,2023,3,09/06/2023,2023,3,2023,3,21.73,3.62,18.11,B,20%,2023,3,Y,408556737,Toolstation,Materials Order no: XNW349238389,Other,3260,42002,,,People and Places,People and Places,Y,29/06/2023 14:48,JCARTRIDGE,7146,7797,N,,,,Y,04/07/2023 10:27,GSCOTT,09/06/2023,2023,3,TWAISTLE,09/06/2023 11:08,N,N
************5315,44,Mrs Tracy J Waistle,U,Tracey Waistle,10176,C,10176,09/06/2023,2023,3,09/06/2023,2023,3,2023,3,187.96,31.33,156.63,B,20%,2023,3,Y,232555575,Screwfix,Karcher and hose Order no: A12498704497,Other,6953,40100,,,People and Places,People and Places,Y,29/06/2023 14:48,JCARTRIDGE,7141,7802,N,,,,Y,04/07/2023 10:27,GSCOTT,09/06/2023,2023,3,TWAISTLE,09/06/2023 12:18,N,N
************5315,44,Mrs Tracy J Waistle,U,Tracey Waistle,10248,C,10248,14/06/2023,2023,3,13/07/2023,2023,4,2023,4,33.30,0.00,33.30,D,0%,2023,4,,,Asda,Asda receipt Ice pops and water Operations and Grounds,Other,3420,46849,,,People and Places,People and Places,Y,13/07/2023 13:16,TWAISTLE,7162,7875,N,,,,Y,13/07/2023 13:22,GSCOTT,13/07/2023,2023,4,TWAISTLE,13/07/2023 12:11,N,N
************5315,44,Mrs Tracy J Waistle,U,Tracey Waistle,10217,C,10217,14/06/2023,2023,3,23/06/2023,2023,3,2023,3,257.61,42.94,214.67,B,20%,2023,3,,733097336,The Plant Place,24 Lavender @ 6.99 each 15 bags of compost @ 5.99 per bag Invoice no: 037694,Other,6205,,,,People and Places,People and Places,Y,29/06/2023 14:48,JCARTRIDGE,7143,7841,N,,,,Y,04/07/2023 10:27,GSCOTT,23/06/2023,2023,3,TWAISTLE,23/06/2023 18:08,N,N
************5315,44,Mrs Tracy J Waistle,U,Tracey Waistle,10216,C,10216,15/06/2023,2023,3,23/06/2023,2023,3,2023,3,13.93,2.32,11.61,B,20%,2023,3,,777947160,Savers Health & Beauty Limited,Suncream Receipt only,Other,6205,,,,People and Places,People and Places,Y,29/06/2023 14:48,JCARTRIDGE,7142,7840,N,,,,Y,04/07/2023 10:27,GSCOTT,23/06/2023,2023,3,TWAISTLE,23/06/2023 17:57,N,N
************5315,44,Mrs Tracy J Waistle,U,Tracey Waistle,10249,C,10249,21/06/2023,2023,3,13/07/2023,2023,4,2023,4,41.94,0.00,41.94,D,0%,2023,4,,733097336,The Plant Place,6 Lavenders @ 6.99 each For Cemeteries Anita Fish,Other,3222,28003,,,People and Places,People and Places,Y,13/07/2023 13:16,TWAISTLE,7163,7876,N,,,,Y,13/07/2023 13:22,GSCOTT,13/07/2023,2023,4,TWAISTLE,13/07/2023 12:23,N,N
************5315,44,Mrs Tracy J Waistle,U,Tracey Waistle,10250,C,10250,22/06/2023,2023,3,13/07/2023,2023,4,2023,4,151.92,25.32,126.60,B,20%,2023,4,Y,893680868,Site King,Clothing Order no: 1244483,Other,6902,41600,,,People and Places,People and Places,Y,13/07/2023 13:17,TWAISTLE,7164,7877,N,,,,Y,13/07/2023 13:22,GSCOTT,13/07/2023,2023,4,TWAISTLE,13/07/2023 12:34,N,N
************5315,44,Mrs Tracy J Waistle,U,Tracey Waistle,10251,C,10251,23/06/2023,2023,3,13/07/2023,2023,4,2023,4,48.00,8.00,40.00,B,20%,2023,4,Y,943720229,NC & DJ BILLINGTON T/A TUDOR TURF,Topsoil Invoice no: 4149,Other,6953,42002,,,People and Places,People and Places,Y,13/07/2023 13:18,TWAISTLE,7165,7878,N,,,,Y,13/07/2023 13:22,GSCOTT,13/07/2023,2023,4,TWAISTLE,13/07/2023 12:38,N,N
************3130,45,Emma Lyons,U,Emma Lyons,10138,C,10138,02/04/2023,2023,1,22/05/2023,2023,2,2023,2,179.43,0.00,179.43,C,0%,2023,2,,,Mailchimp,Mailchimp,Other,6501,,,,People and Places,People and Places,Y,22/05/2023 12:21,BMCDONOUGH,7084,7763,N,,,,Y,22/05/2023 13:28,MHESKETH,22/05/2023,2023,2,BMCDONOUGH,22/05/2023 12:17,N,N
************3130,45,Emma Lyons,U,Emma Lyons,10136,C,10136,03/04/2023,2023,1,22/05/2023,2023,2,2023,2,19.04,0.00,19.04,C,0%,2023,2,,,Facebook,Paid social for HR & Theatres,Other,6501,46107,,,People and Places,People and Places,Y,22/05/2023 12:11,BMCDONOUGH,7083,7761,N,,,,Y,22/05/2023 12:15,MHESKETH,22/05/2023,2023,2,BMCDONOUGH,22/05/2023 12:10,N,N
************3130,45,Emma Lyons,U,Emma Lyons,10120,C,10120,18/04/2023,2023,1,05/05/2023,2023,2,2023,2,102.00,17.00,85.00,B,20%,2023,2,,,Stickershop,Coronation stickers,Other,3010,46522,COR,,People and Places,People and Places,Y,05/05/2023 12:22,ELYONS,7075,7754,N,,,,Y,09/05/2023 09:35,MHESKETH,05/05/2023,2023,2,ELYONS,05/05/2023 12:22,N,N
************3130,45,Emma Lyons,U,Emma Lyons,10121,C,10121,14/05/2023,2023,2,05/05/2023,2023,2,2023,2,20.00,0.00,20.00,R,0%,2023,2,,,Facebook,Coronation boosted post,Other,3010,46522,COR,,People and Places,People and Places,Y,05/05/2023 15:08,ELYONS,7076,7755,N,,,,Y,09/05/2023 09:35,MHESKETH,05/05/2023,2023,2,ELYONS,05/05/2023 14:36,N,N
************8571,46,Emma Lyons,U,Emma Lyons,10211,C,10211,02/05/2023,2023,2,22/06/2023,2023,3,2023,3,213.44,0.00,213.44,C,0%,2023,3,,,Mailchimp,Mailchimp monthly fees,Other,6501,,,,People and Places,People and Places,Y,22/06/2023 12:01,BMCDONOUGH,7120,7835,N,,,,Y,27/06/2023 10:35,MHESKETH,22/06/2023,2023,3,BMCDONOUGH,22/06/2023 11:48,N,N
************8571,46,Emma Lyons,U,Emma Lyons,10214,C,10214,11/05/2023,2023,2,22/06/2023,2023,3,2023,3,87.55,0.00,87.55,C,0%,2023,3,,,Facebook,Paid social for FB,Other,6501,46107,,,People and Places,People and Places,Y,22/06/2023 14:22,BMCDONOUGH,7123,7838,N,,,,Y,27/06/2023 10:35,MHESKETH,22/06/2023,2023,3,BMCDONOUGH,22/06/2023 14:09,N,N
************8571,46,Emma Lyons,U,Emma Lyons,10215,C,10215,14/05/2023,2023,2,22/06/2023,2023,3,2023,3,30.00,0.00,30.00,C,0%,2023,3,,,Facebook,Paid social for GWF,Other,6501,46107,,,People and Places,People and Places,Y,22/06/2023 17:27,BMCDONOUGH,7124,7839,N,,,,Y,27/06/2023 10:35,MHESKETH,22/06/2023,2023,3,BMCDONOUGH,22/06/2023 17:27,N,N
************8571,46,Emma Lyons,U,Emma Lyons,10213,C,10213,23/05/2023,2023,2,22/06/2023,2023,3,2023,3,14.56,0.00,14.56,C,0%,2023,3,,,The Trainline,Tickets to local comms network,Other,6501,46107,,,People and Places,People and Places,Y,22/06/2023 13:42,BMCDONOUGH,7122,7837,N,,,,Y,27/06/2023 10:35,MHESKETH,22/06/2023,2023,3,BMCDONOUGH,22/06/2023 13:41,N,N
************8571,46,Emma Lyons,U,Emma Lyons,10212,C,10212,25/05/2023,2023,2,22/06/2023,2023,3,2023,3,184.97,30.83,154.14,B,20%,2023,3,,,UK POS,2 x A2 poster display stands for events,Other,6501,46107,,,People and Places,People and Places,Y,22/06/2023 13:33,BMCDONOUGH,7121,7836,N,,,,Y,27/06/2023 10:35,MHESKETH,22/06/2023,2023,3,BMCDONOUGH,22/06/2023 13:33,N,N
